{"text_format":"1","workbook":"xlsx","n_sheets":23,"sheets":["Шокеры","Шк Standard-мет.двери","Шк Grande-все","Шк Sm-new","Спец шк","Bakery","Шк Standard-стекл.двери","Шк Bravo","Шк DB-S","Фарма","Без канапе","DW","Столы хол","Витр ингр","Столы с охл ст","Столы bu","Столы GC","Камеры со стеклом","Камеры-Standard 80","Камеры-Professionale 100","Наборы панелей","Дверные бл. универ-е и конт","Дверные бл. с откат.дверью"],"not_rendered":{"charts":0,"images":132,"macros":1,"external_links":0,"defined_names":10,"comments":0,"pivot_tables":0},"unopened":[],"bounds":{"document_bytes":16777216,"sheet_cells":100000,"rows_first":2000,"rows_last":500,"rows_between":2000,"halvings":0,"cell_chars":16384,"cell_head_chars":4096},"cells_cut":0,"cells_raw":0,"read":"whole","date_system":"1900"}

{"sheet":"Шокеры","index":0,"n_rows":43,"n_cols":7,"rows_kept":43,"cut":false,"hidden":false,"merged":[[14,3,17,6],[1,5,1,6],[2,4,2,6],[4,1,4,6],[5,1,9,6],[10,3,12,6],[42,1,43,6],[19,3,21,6],[37,1,37,6],[26,3,33,6],[34,1,34,3],[35,1,35,6],[36,1,36,6],[22,3,24,6]]}
[]
[null,null,null,null,null,"30.03.2020."]
[null,null,null,null,"победитель PIR EXPO AWARDS - 2019 в категории \"Лучшая отечественная разработка для ресторана\""]
[]
[null,"ПРАЙС - ЛИСТ  Шкафы шоковой заморозки POLAIR"]
[null,"\nШкафы шоковой заморозки (шокеры) POLAIR позволяют быстро охладить и быстро заморозить готовые блюда и продукты\nБыстрое охлаждение позволяет блокировать испарение влаги, сохраняя вес готового блюда, а также, избежать интенсивного размножения бактерий, ведущих к прокисанию и порче готовых блюд, а значит увеличивает срок их хранения\nБыстрое замораживание  дает возможность сохранить вкус, форму, полезные свойства, аромат и внешний вид продукта – свежего\nили приготовленного, благодаря формированию микро, а не макрокристаллов, которые не повреждают клеточной структуры продукта, оставляя ее неизменной\n\n"]
[]
[]
[]
[]
[null,null,null,"Шкафы шоковой заморозки POLAIR рассчитаны на работу при температуре окружающей среды до +40°С\nТемпература внутри камеры - до -40°С"]
[]
[]
[]
[null,null,null,"Шкафы шоковой заморозки POLAIR:\nОхлаждают от t° продукта +90 до +3°С – за 90 минут\nЗамораживают от t° продукта +90 до  -18°С – за 240 минут\nДоступны два режима снижения температуры – быстрый и мягкий"]
[]
[]
[]
[]
[null,null,null,"Термощуп – в комплекте поставки шокеров\nВозможны завершение цикла охлаждения/заморозки продуктов:\n• по предустановленному времени\n• по температуре внутри продукта \nОттайка ипарителя – автоматическая, горячим газом\n"]
[]
[]
[null,null,null,"Дополнительно предусмотрены функции:\n• обеззараживания рыбы из открытых водоемов\n• закалки мороженого"]
[]
[]
[]
[null,null,null,"Шкафы шоковой заморозки POLAIR позволяют:\n• Оптимизировать и сократить по времени процесс создания заготовок\n• Существенно расширить меню\n• Снизить себестоимость блюд, приобретая продукты в высокий сезон и/или в оптовых количествах\n• Сократить отходы\n• Осуществить закупку продуктов по самым выгодным ценам\n• Гарантируют пищевую безопасность\n• Минимизируют потерю влаги и веса продуктов\n• Рационализируют все процессы \nПовышают маржинальность любого предприятия общественного питания\n"]
[]
[]
[]
[]
[]
[]
[]
[null,"Базовые цены с учетом НДС",null,null,null,null,"Цена не учитывает стоимость логистических услуг"]
[null,"Шкафы шоковой заморозки POLAIR"]
[null,"Шокеры работают при температуре окужающей среды до +40° С "]
[null,"Охлаждают от t° продукта +90 до +3°С – за 90 минут, замораживают от t° продукта +90 до  -18°С – за 240 минут"]
[null,"Фото","Модель","Кол-во уровней","Размер","Описание","Цена, Руб с НДС"]
[null,null,"CR5-G",5,"800x800x900","Направляющие под GN1/1 и EN40x60\nКоличество охлаждаемого продукта - 20 кг\nКоличество заморажиаемого продукта - 12 кг\nНа шокер можно установить пароконвектомат",155500]
[null,null,"CR10-G",10,"800x800x1650 ","Направляющие под GN1/1 и EN40x60\nКоличество охлаждаемого продукта - 35 кг\nКоличество заморажиаемого продукта - 25 кг",209900]
[null,null,"CR10-G (380 W)",10,"800x800x1650 ","Направляющие под GN1/1 и EN40x60\nКоличество охлаждаемого продукта - 35 кг\nКоличество заморажиаемого продукта - 25 кг",189900]
[null,"Производитель оставляет за собой право частичного изменения технических характеристик оборудования без принципиальных изменений его эксплуатационных свойств"]

{"sheet":"Шк Standard-мет.двери","index":1,"n_rows":46,"n_cols":9,"rows_kept":46,"cut":false,"hidden":false,"merged":[[7,2,7,8],[8,2,8,8],[9,2,9,8],[15,2,15,8],[1,7,1,8],[2,6,2,8],[5,2,5,8],[4,2,4,8],[6,2,6,5],[45,2,46,8],[28,2,29,8],[16,2,16,8],[17,2,17,8],[30,2,30,8],[31,2,31,8],[41,2,41,8],[34,2,34,8],[35,2,35,8],[39,2,39,8],[40,2,40,8]]}
[]
[null,null,null,null,null,null,null,"30.03.2020."]
[]
[]
[null,null,"ПРАЙС - ЛИСТ  Холодильные шкафы POLAIR Standard с металлическими дверьми  "]
[null,null,"Обшивки корпуса и дверей - сталь с полимерным покрытием. Термоизоляция – пенополиуретан.  Корпус герметичный цельнозаливной. Профессиональная динамическая холодильная система. Уверенная работа при температуре окружающей среды до +40°С. Шкафы объемом 700 и 1400 л соответствуют стандарту \"Гастронорм\". Как и вся продукция POLAIR, шкафы проходят приемо-сдаточные испытания в системе 100% контроля качества. "]
[null,null,"Базовые цены с учетом НДС",null,null,null,null,null,"* Цена не учитывает стоимость логистических услуг"]
[null,null,"Холодильные шкафы с металлическими дверьми  "]
[null,null,"Рабочий диапазон температур 0…+6° С, работают при температуре окр. среды до +40° С"]
[null,null,"Xладагент R 134а. Толщина стенки корпуса 43 мм"]
[null,null,"Фото"," Модель","Линия","Объем","Размер ","Описание","Цена*, Руб"]
[null,null,null,"CM105-S","Standard",500,"697х695х1960","Верхнее расположение агрегата \n4 полки, замок, подсветка",41400]
[null,null,null,"CM107-S","Standard",700,"697х925х1960","Верхнее расположение агрегата\n4 полки, замок, подсветка\nGN2/1",47500]
[null,null,null,"CM110-S","Standard",1000,"1402х695х1960","Верхнее расположение агрегата\n8 полок, замки, подсветка",60650]
[null,null,null,"CM114-S","Standard",1400,"1402х925х1960","Верхнее расположение агрегата\n8 полок, замки, подсветка\nGN2/1",67700]
[null,null,"Холодильные шкафы с металлическими дверьми  "]
[null,null,"Рабочий диапазон температур -5…+5° С, работают при температуре окр. среды до +40° С"]
[null,null,"Xладагент R 134а. Толщина стенки корпуса 43 мм"]
[null,null,"Фото"," Модель","Линия","Объем","Размер ","Описание","Цена*, Руб"]
[null,null,null,"CV105-S","Standard",500,"697х695х1960","Верхнее расположение агрегата                       Электрическая оттайка\n4 полки, замок, подсветка",52200]
[null,null,null,"CV107-S","Standard",700,"697х925х1960","Верхнее расположение агрегата                           Электрическая оттайка\n4 полки, замок, подсветка\nGN2/1",58800]
[null,null,null,"CV110-S","Standard",1000,"1402х695х1960","Верхнее расположение агрегата                       Электрическая оттайка\n8 полок, замки, подсветка",71900]
[null,null,null,"CV114-S","Standard",1400,"1402х925х1960","Верхнее расположение агрегата                        Электрическая оттайка\n8 полок, замки, подсветка\nGN2/1",78800]
[]
[]
[]
[]
[]
[null,null,"Производитель оставляет за собой право частичного изменения технических характеристик оборудования без принципиальных изменений его эксплуатационных свойств"]
[]
[null,null,"Рабочий диапазон температур не выше -18° С, работают при температуре окр. среды до +40° С"]
[null,null,"Хладагент  R 404A. Толщина стенки корпуса 43 мм"]
[null,null,"Фото"," Модель","Линия","Объем","Размер","Описание","Цена*, Руб"]
[null,null,null,"CВ105-S","Standard ",500,"697х695х1960","Верхнее расположение агрегата. Толщина стенки 43 мм. Электрическая оттайка \n4 полки, замок, подсветка",56300]
[null,null,"Рабочий диапазон температур не выше -18° С, работают при температуре окр. среды до +40° С"]
[null,null,"Хладагент R 404A. Толщина стенки корпуса 61 мм"]
[null,null,"Фото","Модель","Линия","Объем","Размер","Описание","Цена*, Руб"]
[null,null,null,"CВ107-S","Standard",700,"735х960х1996","Верхнее расположение агрегата                           Электрическая оттайка\n4 полки, замок, подсветка\nGN2/1",65990]
[null,null,null,"CВ114-S","Standard",1400,"1474х960х1996","Верхнее расположение агрегата                  Электрическая оттайка\n8 полок, замки, подсветка\nGN2/1",95500]
[null,null,"Комбинированные шкафы с металлическими дверьми  "]
[null,null,"Рабочий диапазон температур 0…+6° С,/ -15…-20° С,  работает при температуре окр. среды до +40° С                            "]
[null,null,"Хладагенты R134а и R404A. Толщина стенки корпуса 43 мм"]
[null,null,"Фото","Модель","Линия","Объем","Размер","Описание","Цена*, Руб"]
[null,null,null,"CC214-S","Standard","700/700","1402х925х1960","Двухкамерный. Внутренний объем каждой камеры 700 л. Верхнее расположение агрегата\n8 полок, замки, подсветка\nGN2/1",98980]
[]
[null,null,"Производитель оставляет за собой право частичного изменения технических характеристик оборудования без принципиальных изменений его эксплуатационных свойств"]

{"sheet":"Шк Grande-все","index":2,"n_rows":60,"n_cols":9,"rows_kept":60,"cut":false,"hidden":false,"merged":[[54,2,54,8],[41,2,41,8],[42,2,42,8],[59,2,60,8],[48,2,48,8],[49,2,49,8],[53,2,53,8],[35,2,35,8],[8,2,8,8],[14,2,14,8],[15,2,15,8],[16,2,16,8],[22,2,22,8],[23,2,23,8],[27,2,28,8],[30,2,30,8],[31,2,31,8],[33,2,33,5],[34,2,34,8],[7,2,7,8],[1,7,1,8],[2,6,2,8],[4,2,4,8],[5,2,5,8],[6,2,6,5]]}
[]
[null,null,null,null,null,null,null,"30.03.2020."]
[]
[]
[null,null,"ПРАЙС - ЛИСТ   Холодильные  шкафы  POLAIR Gm  с  алюминиевыми  профилями"]
[null,null,"Шкафы POLAIR Gm  (Grande modificato - модифицированные) изготавливаются из пищевой нержавеющей стали - снаружи и изнутри (за исключением задней внешней стенки). Термоизоляция – пенополиуретан. Корпус герметичный цельнозаливной. \nОснащены профессиональной динамической системой охлаждения. Имеют клавишный микропереключатель и светодиодную подсветку. \nЭлектронная панель управления кроме обычных функций позволяет:\n• Подключить шкаф к системам дистанционного мониторинга (в том числе, через порт MODBUS  с помощью  сетевой карты)\n• Записать данные в журнал контроллера (с использованием сетевой карты)\n• Передавать данные через Bluetooth (модуль для передачи данных – опция)\nАлюминиевые профили дверей и верхней панели:\n• Придают шкафам дополнительную прочность\n• Обеспечивают эргономичность (ручка интегрирована в профиль)\n• Дополняют гармоничный дизайн шкафов\nШкафы объемом 700 и 1400 л гастронормированы - GN 2/1.\nПедаль для открывания двери входит в комплект стандартной поставки.\nКолеса вместо регулируемых по высоте ножек предлагаются в качестве опции."]
[null,null,"Базовые цены с учетом НДС",null,null,null,null,null,"* Цена не учитывает стоимость логистических услуг"]
[null,null,"Рабочий диапазон температур 0…+6° С, работают при температуре окр. среды до +40° С"]
[null,null,"Хладагент R 134а. Толщина стенки корпуса 43 мм"]
[null,null,"Фото"," Модель","Линия","Объем","Размер","Описание","Цена*, Руб"]
[null,null,null,"CM105-Gm ","Gm",500,"697х695х1960","Внутренний объем 500 л, верхнее расположение агрегата, нержавеющая сталь, алиминиевые профили, \n4 полки, замок, LED подсветка,         \nпедаль",67108.474576271183]
[null,null,null,"CM107-Gm ","Gm",700,"697х925х1960","Внутренний объем 700 л, верхнее расположение агрегата, нержавеющая сталь, алиминиевые профили, \n4 полки, замок, LED подсветка,         \nпедаль",77700]
[null,null,null,"CM110-Gm ","Gm",1000,"1402х695х1960","Внутренний объем 1 000 л, верхнее расположение агрегата, нержавеющая сталь, алиминиевые профили, \n8 полок, замки, LED подсветка,         \n2 педали",94000]
[null,null,null,"CM114-Gm ","Gm",1400,"1402х925х1960","Внутренний объем 1 400 л, верхнее расположение агрегата, нержавеющая сталь, алиминиевые профили, \n8 полок, замки, LED подсветка,         \n2 педали",105000]
[null,null,"Холодильные шкафы с металлическими дверьми  "]
[null,null,"Рабочий диапазон температур -5…+5° С, работают при температуре окр. среды до +40° С"]
[null,null,"Xладагент R 134а. Толщина стенки корпуса 43 мм"]
[null,null,"Фото"," Модель","Линия","Объем","Размер ","Описание","Цена*, Руб"]
[null,null,null,"CV105-Gm ","Gm",500,"697х695х1960","Внутренний объем 500 л, верхнее расположение агрегата, нержавеющая сталь, алиминиевые профили, \n4 полки, замок, LED подсветка,         \nпедаль",71084.745762711871]
[null,null,null,"CV107-Gm ","Gm",700,"697х925х1960","Внутренний объем 700 л, верхнее расположение агрегата, нержавеющая сталь, алиминиевые профили, \n4 полки, замок, LED подсветка,         \nпедаль",84400]
[null,null,null,"CV110-Gm ","Gm",1000,"1402х695х1960","Внутренний объем 1 000 л, верхнее расположение агрегата, нержавеющая сталь, алиминиевые профили, \n8 полок, замки, LED подсветка,         \n2 педали",109000]
[null,null,null,"CV114-Gm ","Gm",1400,"1402х925х1960","Внутренний объем 1 400 л, верхнее расположение агрегата, нержавеющая сталь, алиминиевые профили, \n8 полок, замки, LED подсветка,         \n2 педали",115550]
[null,null,"Рабочий диапазон температур не выше -18° С, работают при температуре окр. среды до +40° С"]
[null,null,"Хладагент R 404A. Толщина стенки корпуса 61 мм"]
[null,null,"Фото"," Модель","Линия","Объем","Размер","Описание","Цена*, Руб"]
[null,null,null,"CB107-Gm ","Gm",700,"735х960х1996","Внутренний объем 700 л, верхнее расположение агрегата, нержавеющая сталь, алиминиевые профили, \n4 полки, замок, LED подсветка,         \nпедаль\nЭлектрическая оттайка",89900]
[null,null,null,"CB114-Gm ","Gm",1400,"1474х960х1996","Внутренний объем 1 400 л, верхнее расположение агрегата, нержавеющая сталь, алиминиевые профили, \n8 полок, замки, LED подсветка,         \n2 педали\nЭлектрическая оттайка",128280]
[]
[]
[]
[null,null,"ПРАЙС - ЛИСТ  Холодильные шкафы POLAIR Grande"]
[null,null,"Шкафы POLAIR Grande изготавливаются из пищевой нержавеющей стали - снаружи и изнутри (за исключением задней внешней стенки). Термоизоляция – пенополиуретан. Корпус герметичный цельнозаливной. Оборудование комплектуется компрессорами ведущих европейских производителей. Шкафы объемом 700 и 1400 л соответствуют стандарту \"Гастронорм\". Вся продукция на заводе проходит 100% контроль качества. "]
[]
[null,null,"Базовые цены с учетом НДС",null,null,null,null,null,"* Цена не учитывает стоимость логистических услуг"]
[null,null,"Рабочий диапазон температур 0…+6° С, работают при температуре окр. среды до +40° С"]
[null,null,"Хладагент R 134а. Толщина стенки корпуса 43 мм"]
[null,null,"Фото"," Модель","Линия","Объем","Размер","Описание","Цена*, Руб"]
[null,null,null,"CM105-G","Grande",500,"697х695х1960","Внутренний объем 500 л, верхнее расположение агрегата, нержавеющая сталь, \n4 полки, замок, подсветка                     ",67108.474576271183]
[null,null,null,"CM107-G","Grande",700,"697х925х1960","Внутренний объем 700 л, верхнее расположение агрегата, нержавеющая сталь\n4 полки, замок, подсветка         ",77700]
[null,null,null,"CM110-G","Grande",1000,"1402х695х1960","Внутренний объем 1000 л, верхнее расположение агрегата, нержавеющая сталь \n8 полок, замки, подсветка                        ",94000]
[null,null,null,"CM114-G","Grande",1400,"1402х925х1960","Внутренний объем 1400 л, верхнее расположение агрегата, нержавеющая сталь \n8 полок, замки, подсветка                        ",105000]
[null,null,"Рабочий диапазон температур -5…+5° С, работают при температуре окр. среды до +40° С"]
[null,null,"Хладагент R 134а. Толщина стенки корпуса 43 мм"]
[null,null,"Фото"," Модель","Линия","Объем","Размер","Описание","Цена*, Руб"]
[null,null,null,"CV105-G","Grande",500,"697х695х1960","Внутренний объем 500 л, верхнее расположение агрегата, нержавеющая сталь \nЭлектрическая оттайка\n4 полки, замок, подсветка       ",71084.745762711871]
[null,null,null,"CV107-G","Grande",700,"697х925х1960","Внутренний объем 700 л, верхнее расположение агрегата, нержавеющая сталь \nЭлектрическая оттайка\n4 полки, замок, подсветка       ",84400]
[null,null,null,"CV110-G","Grande",1000,"1402х695х1960","Внутренний объем 1000 л, верхнее расположение агрегата, нержавеющая сталь  \nЭлектрическая оттайка\n8 полок, замки, подсветка             ",109000]
[null,null,null,"CV114-G","Grande",1400,"1402х925х1960","Внутренний объем 1400 л, верхнее расположение агрегата, нержавеющая сталь     Электрическая оттайка\n8 полок, замки, подсветка        ",115550]
[null,null,"Рабочий диапазон температур не выше -18° С, работают при температуре окр. среды до +40° С"]
[null,null,"Хладагент R 404A. Толщина стенки корпуса 61 мм"]
[null,null,"Фото"," Модель","Линия","Объем","Размер","Описание","Цена*, Руб"]
[null,null,null,"CB107-G","Grande",700,"735х960х1996","Внутренний объем 700 л, верхнее расположение агрегата, нержавеющая сталь марки  \nЭлектрическая оттайка\n4 полки, замок, подсветка       ",89900]
[null,null,null,"CB114-G","Grande",1400,"1474х960х1996","Внутренний объем 1400 л, верхнее расположение агрегата, нержавеющая сталь марки  \nЭлектрическая оттайка\n8 полок, замки, подсветка        ",128280]
[null,null,"Рабочий диапазон температур +1…+10° С, работают при температуре окр. среды до +32° С"]
[null,null,"Хладагент R 134а. Толщина стенки корпуса 43 мм"]
[null,null,"Фото"," Модель","Линия","Объем","Размер","Описание","Цена*, Руб"]
[null,null,null,"DM105-G","Grande",500,"697х710х1960","Внутренний объем 500 л, нержавеющая сталь, \n4 полки, вертикальная подсветка, канапе с подсветкой.                               Стеклянная дверь. ",73730]
[null,null,null,"DM107-G","Grande",700,"697х945х1960","Внутренний объем 700 л, нержавеющая сталь \n4 полки, вертикальная подсветка, канапе с подсветкой.    \nСтеклянная дверь. ",93390]
[]
[null,null,"Производитель оставляет за собой право частичного изменения технических характеристик оборудования без принципиальных изменений его эксплуатационных свойств"]

{"sheet":"Шк Sm-new","index":3,"n_rows":32,"n_cols":9,"rows_kept":32,"cut":false,"hidden":false,"merged":[[8,2,8,8],[22,2,22,8],[23,2,23,8],[31,2,32,8],[1,7,1,8],[2,6,2,8],[4,2,4,8],[5,2,5,8],[6,2,6,5],[7,2,7,8],[26,2,26,8],[27,2,27,8],[14,2,14,8],[15,2,15,8],[16,2,16,8]]}
[]
[null,null,null,null,null,null,null,"30.03.2020."]
[]
[]
[null,null,"ПРАЙС - ЛИСТ  Холодильные шкафы POLAIR Sm с алюминиевыми профилями"]
[null,null,"Шкафы POLAIR Sm являются обновленной в духе современного промышленного дизайна, версией холодильных шкафов POLAIR - Standard. \nАлюминиевые профили дверей и верхней панели придают шкафам дополнительную прочност и обеспечивают эргономичность.\nШкафы оснащены профессиональной динамической системой охлаждения. Имеют клавишный микропереключатель и внутреннюю светодиодную подсветку. \nВ качестве терморегулятора применен электронный блок управления.\nКорпус герметичный цельнозаливной.Термоизоляция – пенополиуретан. \nОбшивки корпуса и дверей - сталь с полимерным покрытием.\nШкафы объемом 700 и 1400 л гастронормированы - GN 2/1.\nПедаль для открывания двери входит в комплект поставки, колеса вместо регулируемых по высоте ножек предлагаются в качестве опций."]
[null,null,"Базовые цены с учетом НДС",null,null,null,null,null,"* Цена не учитывает стоимость логистических услуг"]
[null,null,"Рабочий диапазон температур 0…+6° С, работают при температуре окр. среды до +40° С"]
[null,null,"Хладагент R 134а. Толщина стенки корпуса 43 мм"]
[null,null,"Фото"," Модель","Линия","Объем","Размер","Описание","Цена*, Руб"]
[null,null,null,"CM105-Sm ","Standard m",500,"697х695х1960","Внутренний объем 500 л, верхнее расположение агрегата, алюминиевые профили, \n4 полки, замок, подсветка, \nпедаль",47000]
[null,null,null,"CM107-Sm ","Standard m",700,"697х925х1960","Внутренний объем 700 л, верхнее расположение агрегата, алюминиевые профили, \n4 полки, замок,  подсветка, \n2 педали",52990]
[null,null,null,"CM110-Sm ","Standard m",1000,"1402х695х1960","Внутренний объем 1 000 л, верхнее расположение агрегата, алюминиевые профили, \n8 полок, замки,  подсветка, \nпедаль",68800]
[null,null,null,"CM114-Sm ","Standard m",1400,"1402х925х1960","Внутренний объем 1 400 л, верхнее расположение агрегата, алюминиевые профили, \n8 полок, замки,  подсветка, \n2 педали",75500]
[null,null,"Холодильные шкафы с металлическими дверьми  "]
[null,null,"Рабочий диапазон температур -5…+5° С, работают при температуре окр. среды до +40° С"]
[null,null,"Xладагент R 134а. Толщина стенки корпуса 43 мм"]
[null,null,"Фото"," Модель","Линия","Объем","Размер ","Описание","Цена*, Руб"]
[null,null,null,"CV105-Sm ","Standard m",500,"697х695х1960","Внутренний объем 500 л, верхнее расположение агрегата, алюминиевые профили, \n4 полки, замок,  подсветка, \nпедаль",58580]
[null,null,null,"CV107-Sm ","Standard m",700,"697х925х1960","Внутренний объем 700 л, верхнее расположение агрегата, алюминиевые профили, \n4 полки, замок,  подсветка, \n2 педали",65600]
[null,null,null,"CV110-Sm ","Standard m",1000,"1402х695х1960","Внутренний объем 1 000 л, верхнее расположение агрегата, алюминиевые профили, \n8 полок, замки,  подсветка,\nпедаль",80800]
[null,null,null,"CV114-Sm ","Standard m",1400,"1402х925х1960","Внутренний объем 1 400 л, верхнее расположение агрегата, алюминиевые профили, \n8 полок, замки,  подсветка, \n2 педали",89800]
[null,null,"Температурный режим:  -18° С,  температура окр. среды до +40° С"]
[null,null,"Хладагент R 404A. Толщина стенки корпуса 43 мм"]
[null,null,"Фото"," Модель","Линия","Объем","Размер","Описание","Цена*, Руб"]
[null,null,null,"CB105-Sm ","Standard m",500,"697х695х1960","Внутренний объем 500 л, верхнее расположение агрегата, алюминиевые профили, \n4 полки, замок,  подсветка, педаль\nЭлектрическая оттайка",65650]
[null,null,"Рабочий диапазон температур не выше -18° С, работают при температуре окр. среды до +40° С"]
[null,null,"Хладагент R 404A. Толщина стенки корпуса 61 мм"]
[null,null,"Фото"," Модель","Линия","Объем","Размер","Описание","Цена*, Руб"]
[null,null,null,"CB107-Sm ","Standard m",700,"735х960х1996","Внутренний объем 700 л, верхнее расположение агрегата, алюминиевые профили, \n4 полки, замок,  подсветка, педаль\nЭлектрическая оттайка",75750]
[null,null,null,"CB114-Sm ","Standard m",1400,"1474х960х1996","Внутренний объем 1 400 л, верхнее расположение агрегата, алюминиевые профили, \n8 полок, замки,  подсветка, \n2 педали\nЭлектрическая оттайка",106990]
[null,null,"Производитель оставляет за собой право частичного изменения технических характеристик оборудования без принципиальных изменений его эксплуатационных свойств"]

{"sheet":"Спец шк","index":4,"n_rows":44,"n_cols":7,"rows_kept":44,"cut":false,"hidden":false,"merged":[[40,1,40,2],[22,3,25,6],[27,1,27,3],[30,1,30,6],[40,3,40,4],[41,1,41,2],[41,3,41,4],[43,1,44,6],[1,5,1,6],[2,4,2,6],[4,1,4,6],[5,1,11,6],[17,3,20,6],[12,3,15,6],[28,1,28,6],[29,1,29,6],[37,1,37,6],[38,1,38,2],[38,3,38,4],[39,1,39,2],[39,3,39,4]]}
[]
[null,null,null,null,null,"30.03.2020."]
[]
[]
[null,"ПРАЙС - ЛИСТ  Cпециализированные  шкафы POLAIR"]
[null,"Специализированные шкафы POLAIR рассчитаны на применение в фермерских хозяйствах, ресторанах, стейк-хаусах, продуктовых бутиках, супермаркетах, специализированных магазинах и т.п.\nДиапазон рабочих температур от -2 до +30°С.\nВлажность регулируется в диапазоне от 60 до 95%. Встроенный увлажнитель предусматривает стандартное подключение к водопроводу (с водоочисткой) и к канализации.\nШкафы предназначены для работы при температуре окружающего воздуха до +40°С.\nРусифицированная электронная панель управления с графическим дисплеем диагональю 5 дюймов позволяет управлять работой шкафов, задавать нужные параметы для каждой из стадий готовности того или иного продукта, сохранять программы для дальнейшего использования. А также, обеспечивает функцию дистанционного мониторинга за работой шкафа (в том числе, HACCP)."]
[]
[]
[]
[]
[]
[]
[null,null,null,"Шкаф CS107-Salami дает возможность приготовить различные виды этой и других сыровяленых колбас, а также других мясных деликатесов, не уступающих по качеству аналогам легендарных мировых брендов. Шкафы оснащены специальными перекладинами с подвесами для колбас. Встроенный увлажнитель и UV-лампа для обеззараживания воздуха входят в комплект поставки"]
[]
[]
[]
[]
[null,null,null,"Холодильный шкаф CS107- Cheese позволяет создать оптимальные условия для дозревания сыров – твердых и полутвердых и получить продукцию, полностью соответствующую по вкусовым и органолептическим характеристикам лучшим сортам этого продукта. Полки из нержавеющей стали или из стальной окрашенной проволоки предлагаются на выбор покупателя.Шкаф комплектуется ультразвуковым увлажнителем."]
[]
[]
[]
[]
[null,null,null,"Модель CS107-Meat предназначена для вызревания мяса, в том числе, для получения столь популярных сейчас, стейков Dry Aged. Правильно организовать внутреннее пространство шкафов позволяют штанга для подвеса крупных кусков мяса (нагрузка до 80 кг) и полки для размещения более мелких отрубов.  \nUV-лампа для обеззараживания воздуха входит в комплект поставки."]
[]
[]
[]
[]
[null,"Базовые цены с учетом НДС",null,null,null,null,"Цена не учитывает стоимость логистических услуг"]
[null,"Специализированные шкафы                                                                                                                                                                                                      "]
[null,"Рабочий диапазон температур -2…+30° С, влажность регулируется в интервале от 60 до 95%"]
[null,"Шкафы работают при температуре окужающей среды до +40° С "]
[null,"Фото","Модель","Объем","Размер","Описание","Цена, Руб с НДС"]
[null,null,"CS107 Salami",700,"697х1005х1960","Ультразвуковой увлажнитель \nUV лампа\n3 уровня тройных перекладин с подвесами для колбас\nвнутренняя подсветка\nзамок, педаль",223990]
[null,null,"CS107 Cheese \nИсполнение 1",700,"697х1005х1960","Ультразвуковой увлажнитель \n4 сетчатые полки из окрашенной проволоки\nвнутренняя подсветка\nзамок, педаль",221000]
[null,null,"CS107 Cheese\nИсполнение 2",700,"697х1005х1960","Ультразвуковой увлажнитель \n4 полки из нержавеющей стали\nвнутренняя подсветка\nзамок, педаль",224000]
[null,null,"CS107 Meat Исполнение 1",700,"697х1005х1960","Ультразвуковой увлажнитель\nUV лампа\nштанга для подвеса\n2 перфорированные полки из нержавеющей стали\nвнутренняя подсветка\nзамок, педаль",223500]
[null,null,"CS107 Meat\nИсполнение 2",700,"697х1005х1960","Ультразвуковой увлажнитель\nUV лампа\n4 перфорированные полки из нержавеющей стали\nвнутренняя подсветка\nзамок, педаль",224990]
[null,"Дополнительняе опции                                                                                                                                                                                                    "]
[null,"Название опции",null,"Подходит для модели шкафа",null,"Описание","Цена, Руб с НДС"]
[null,"Полка перфорированная из нержавеющей стали 530х650 мм",null,"CS107-Salami, Meat, Cheese",null,"Полка с перфорацией изготовлена из нержавеющей стали\nНаправляющие в комплекте",2400]
[null,"Штанга для подвеса крупных кусков маса",null,"CS107- Meat",null,"Максимальная на гурзка на штангу - 80 кг",2100]
[null,"Тройная перекладина с подвесами для колбас",null,"CS107-Salami",null,"Система из трех перекладин, закрепленных на направляющих с подвесами для колбас",2300]
[]
[null,"Производитель оставляет за собой право частичного изменения технических характеристик оборудования без принципиальных изменений его эксплуатационных свойств"]

{"sheet":"Bakery","index":5,"n_rows":52,"n_cols":8,"rows_kept":52,"cut":false,"hidden":false,"merged":[[1,6,1,7],[2,5,2,7],[6,1,6,7],[9,1,13,7],[16,4,17,7],[51,1,52,7],[23,4,25,7],[27,4,29,7],[33,1,33,4],[19,4,21,7]]}
[]
[null,null,null,null,null,null,"30.03.2020."]
[]
[]
[]
[]
[null,"ПРАЙС - ЛИСТ  специализированные  шкафы POLAIR Bakery"]
[]
[]
[null,"Специализированные шкафы для индустрии хлебопечения и кондитерских производств.\nОбеспечивают замедление ферментации, хранение заготовок, их регенерацию и расстойку \nв нужных для каждого из процессов условиях, дают возможность подготовить \nизделия из теста к выпечке к строго определенному времени.\nПовышают качество выпечки, защищают рецептуру, минимизируют ошибки персонала,\nпозволяет отказаться от работы в ночную смену.\nУВЕЛИЧИВАЮТ  ПРИБЫЛЬНОСТЬ  ЛЮБОЙ  ПЕКАРНИ!\nДиапазон рабочих температур холодильных шкафов CS107Bakery Br от -10 до +40°С.\nШкафы предназначены для работы при температуре окружающего воздуха до +40°С.\nКорпус – герметичный цельнозаливной. Обшивки – из нержавеющнй стали.\nХолодильная система разработана с учетом специфики данного вида оборудования.\n"]
[]
[]
[]
[]
[]
[]
[null,null,null,null,"Встроенный увлажнитель создает необходимый уровень влажности в интервале от 60 до 90%. Вентилятор воздухоохладителя с регулируемой скоростью вращения предохраняет заготовки от заветривания"]
[]
[]
[null,null,null,null,"Контрольная панель позволяет управлять температурой внутри шкафа, уровнем влажности, скоростью вращения вентилятора воздухоохладителя, протяженностью процессов, создавая собственные программы, сохраняя их и меняя при необходимости"]
[]
[]
[]
[null,null,null,null,"Доступны два варианта исполнения шкафов:\nТип 1 - с контроллером, оснащенным пятидюймовым цветным графическим дисплеем\nТип 2 - с контроллером, оснащенным большим семидюймовым дисплеем с многоцветной графикой"]
[]
[]
[]
[null,"тип 1",null,null,"Двадцать пар съемных направляющих для противней 40х60 см входят в комплект стандартной поставки, как и педаль открывания двери если заняты руки"]
[]
[]
[null,null,null,"             тип 2"]
[]
[]
[null,"Базовые цены с учетом НДС",null,null,null,null,null,"Цена не учитывает стоимость логистических услуг"]
[null,"Фото","Модель","Линия","Объем","Размер","Описание","Цена*, Руб"]
[null,null,"CS107-Bakery Br\nтип 1","Bakery",700,"697х1005х1960","Шкаф отложенной расстоки, обеспечивает замедление ферментации, хранение, брожение и расстойку теста Встроенный увлажнитель\nКонтрольная панель с 5'' дисплеем",225500]
[null,null,"CS107-Bakery Br\nтип 2","Bakery",700,"697х1005х1960","Шкаф отложенной расстоки, обеспечивает замедление ферментации, хранение, брожение и расстойку теста Встроенный увлажнитель\nКонтрольная панель с 7'' дисплеем",248800]
[]
[]
[]
[]
[]
[]
[]
[]
[]
[]
[]
[]
[]
[]
[null,"Производитель оставляет за собой право частичного изменения технических характеристик оборудования без принципиальных изменений его эксплуатационных свойств"]

{"sheet":"Шк Standard-стекл.двери","index":6,"n_rows":34,"n_cols":8,"rows_kept":34,"cut":false,"hidden":false,"merged":[[27,1,27,7],[33,1,34,7],[1,6,1,7],[15,1,15,7],[4,1,4,7],[12,1,12,4],[6,1,10,7],[13,1,14,7],[28,1,28,7],[2,5,2,7]]}
[]
[null,null,null,null,null,null,"30.03.2020."]
[]
[]
[null,"ПРАЙС - ЛИСТ  Холодильные шкафы POLAIR Standard со стеклянными дверьми  "]
[]
[null,"Шкафы POLAIR Standard со стеклянной дверью имеют корпус с обшивками из  стали с полимерным покрытием - снаружи и изнутри. \nОснащены профессиональной динамической системой охлаждения.\nТермоизоляция – пенополиуретан. Корпус герметичный цельнозаливной. \nШкафы оснащены информационной панелью - канапе с подсветкой и имеют вертикальную внутреннюю подсветку товара. \nДвери в алюминиевых рамах с легкозаменяемым уплотнителем с магнитной вставкой имеют возможность перенавески."]
[]
[]
[]
[]
[]
[null,"Базовые цены с учетом НДС",null,null,null,null,null,"* Цена не учитывает стоимость логистических услуг"]
[null,"Холодильные шкафы со стеклянными дверьми.                                                                                                                                                                                                               Рабочий диапазон температур +1…+10° С, работают при температуре окр. среды до +32° С"]
[]
[null,"Xладагент R 134а. Толщина стенки корпуса 43 мм"]
[null,"Фото","Модель","Линия","Объем","Размер","Описание","Цена*, Руб"]
[null,null,"DM105-S","Standard",500,"697х710х1960","Внутренний объем 500л, \n4 полки, вертикальная внутренняя LED подсветка, канапе с  LED подсветкой",42420]
[null,null,"DM105-S 2.0","Standard",500,"697х710х1960","Внутренний объем 500л, \n5 полок, вертикальная внутренняя LED подсветка, канапе с LED подсветкой. \nУвеличенная вместимость. \nУвеличенный Facing.",47400]
[null,null,"DM107-S","Standard",700,"697х945х1960","Внутренний объем 700л, \n4 полки, вертикальная внутренняя LED подсветка, канапе с  LED подсветкой ",51100]
[null,null,"DM107-S 2.0","Standard",700,"697х945х1960","Внутренний объем 700л, \n5 полок, вертикальная внутренняя LED подсветка, канапе с LED подсветкой.  \nУвеличенная вместимость. \nУвеличенный Facing.",54900]
[null,null,"DM110Sd-S","Standard",1000,"1402х710х1960","Внутренний объем 1 000л, \n8 полок, вертикальная внутренняя LED подсветка, канапе с LED подсветкой,  двери купе ",67990]
[null,null,"DM110Sd-S 2.0","Standard",1000,"1402х710х1960","Внутренний объем 1 000л, \n10 полок, вертикальная внутренняя LED подсветка, канапе с LED подсветкой,  двери купе \nУвеличенная вместимость. \nУвеличенный Facing.",75750]
[null,null,"DM114Sd-S","Standard",1400,"1402х945х1960","Внутренний объем 1 400л, \n8 полок, вертикальная внутренняя подсветка, канапе с подсветкой, двери купе ",74740]
[null,null,"DM114Sd-S 2.0","Standard",1400,"1402х945х1960","Внутренний объем 1 400л, \n10 полок, вертикальная внутренняя LED подсветка, канапе с LED подсветкой,  двери купе \nУвеличенная вместимость. \nУвеличенный Facing.",82100]
[null,null,"DM110-S","Standard",1000,"1402х710х1960","Внутренний объем 1000л, \n8 полок, вертикальная внутренняя подсветка, канапе с LED подсветкой,  двери распашные",67760]
[null,null,"DM114-S","Standard",1400,"1402х945х1960","Внутренний объем 1400л, \n8 полок, вертикальная внутренняя LED подсветка, канапе с  LED подсветкой, двери распашные",74740]
[null,"Рабочий диапазон температур -8…0° С, работают при температуре окр. среды до +32° С"]
[null,"Xладагент R 404а. Толщина стенки корпуса 43 мм"]
[null,"Фото","Модель","Линия","Объем","Размер","Описание","Цена*, Руб"]
[null,null,"DP102-S","Standard",150,"600х625х890","Внутренний объем 150л, специальный шкаф для икры и пресервов, \n2 полки, внутренняя LED подсветка, \nмеханический замок",37500]
[null,null,"DP105-S","Standard",500,"697х710х1960","Внутренний объем 500л, специальный шкаф для икры и пресервов, \n4 полки, вертикальная внутренняя LED подсветка, канапе с LED  подсветкой,                 механический замок",55500]
[null,null,"DP107-S","Standard",700,"697х945х1960","Внутренний объем 700л, специальный шкаф для икры и пресервов, \n4 полки, вертикальная внутренняя LED подсветка, канапе с  LED подсветкой,                 механический замок",59500]
[null,"Производитель оставляет за собой право частичного изменения технических характеристик оборудования без принципиальных изменений его эксплуатационных свойств"]

{"sheet":"Шк Bravo","index":7,"n_rows":42,"n_cols":8,"rows_kept":42,"cut":false,"hidden":false,"merged":[[32,1,32,7],[41,1,42,7],[1,6,1,7],[5,1,5,7],[7,1,12,7],[29,1,29,4],[30,1,31,7],[17,4,17,7],[14,4,15,7],[21,4,22,7],[19,4,19,7],[24,4,26,7],[2,5,2,7]]}
[]
[null,null,null,null,null,null,"30.03.2020."]
[]
[]
[]
[null,"ПРАЙС - ЛИСТ  Холодильные шкафы  со стеклянными дверьми POLAIR Bravo "]
[]
[null,"Компактные размеры\nУвеличенная обзорность \nДинамическая система охлаждения\nЭкономичность энергопотребления \nЦельнозаливной пенополиуретаном корпус\nРегулируемые опоры спереди и ролики для удобства перемещения сзади"]
[]
[]
[]
[]
[]
[]
[null,null,null,null,"Нижнее расположение агрегата обеспечивают оптимальное с точки зрения мерчандайзинга экспозицию продукции "]
[]
[]
[null,null,null,null," Эффективная светодиодная подсветка улучшает восприятие товара"]
[]
[null,null,null,null,"Подсветка канапе входит в комплект поставки"]
[]
[null,null,null,null,"Полки из стальной оцинкованной проволоки с полимерным покрытием выдерживают нагрузку до 50 кг - для шкафов DM104-Bravo и DM104c-Bravo"]
[]
[]
[null,null,null,null,"Алюминиевые рамы дверей обладают высокой механической прочностью, надежностью и отменным внешним видом"]
[]
[]
[]
[]
[null,"Базовые цены с учетом НДС",null,null,null,null,null,"Цена не учитывает стоимость логистических услуг"]
[null,"Холодильные шкафы со стеклянными дверьми.                                                                                                                                                                                                               Рабочий диапазон температур +1…+10° С, работают при температуре окр. среды до +32° С"]
[]
[null,"Xладагент R 134а. Толщина стенки монолитного цельнозаливного корпуса 43 мм"]
[null,"Фото","Модель","Линия","Объем","Размер","Описание","Цена*, Руб"]
[null,null,"DM104-Bravo","Bravo",390,"606*630*1730","Внутренний объем 390л, \n4 полки, \nвнутренняя LED подсветка \n",39900]
[null,null,"DM104c-Bravo","Bravo",390,"606*630*1935","Внутренний объем 390л, \n4 полки, \nвертикальная LED подсветка, \nканапе с LED подсветкой",40400]
[null,null,"DM102-Bravo","Bravo",150,"606*625*890","Внутренний объем 150л, \n2 полки, \nвнутренняя LED подсветка \n",34540]
[null,null,"DM102-Bravo с замком","Bravo",150,"606*625*890","Внутренний объем 150л, \n2 полки, \nвнутренняя LED подсветка, замок\n",36040]
[null,null,"DM102-Bravo черный","Bravo",150,"606*625*890","Внутренний объем 150л, \n2 полки, \nвнутренняя LED подсветка. \nКорпус черного цвета - снаружи и изнутри",36440]
[null,null,"DM102-Bravo черный с замком","Bravo",150,"606*625*890","Внутренний объем 150л, \n2 полки, \nвнутренняя LED подсветка, замок. \nКорпус черного цвета - снаружи и изнутри",37940]
[]
[null,"Производитель оставляет за собой право частичного изменения технических характеристик оборудования без принципиальных изменений его эксплуатационных свойств"]

{"sheet":"Шк DB-S","index":8,"n_rows":47,"n_cols":8,"rows_kept":47,"cut":false,"hidden":false,"merged":[[46,1,47,7],[24,4,26,7],[20,4,22,7],[28,4,30,7],[34,1,34,4],[35,1,36,7],[37,1,37,7],[1,6,1,7],[2,5,2,7],[6,1,6,7],[9,1,14,7],[17,4,18,7]]}
[]
[null,null,null,null,null,null,"30.03.2020."]
[]
[]
[]
[]
[null,"ПРАЙС - ЛИСТ  Низкотемпературные шкафы POLAIR со стеклянными дверьми  "]
[]
[]
[null,"Высокое качество экспозиции замороженных продуктов\nНадежность хранения при необходимой для них температуре\nЭкономичность энергопотребления \nУдобство использования и обслуживания\nПривлекательный дизайн\nНаличие на сладе ПОЛАИР"]
[]
[]
[]
[]
[]
[]
[]
[null,null,null,null,"Температурный диапазон от -21 до -18° обеспечивает качественное хранение любых замороженных продуктов и мороженого"]
[]
[]
[null,null,null,null,"Условия окружающей среды (температура +25°, относительная влажность воздуха - 60% - 3-й климатический класс) типичны для любых торговых помещений, а также, залов ресторанов и кафе"]
[]
[]
[]
[null,null,null,null,"Двухкамерный стеклопакет двери с k-стеклом и аргоном в одной из камер гарантирует отменную термоизоляцию содержимого, экономичность энергопотребления шкафа и прозрачность стекла во всех режимах работы"]
[]
[]
[]
[null,null,null,null,"Алюминиевые с подогревом рамы дверей обладают высокой механической прочностью, надежностью и отменным внешним видом"]
[]
[]
[]
[]
[]
[null,"Базовые цены с учетом НДС",null,null,null,null,null,"Цена не учитывает стоимость логистических услуг"]
[null,"Холодильные шкафы со стеклянными дверьми.                                                                                                                                                                                                               Рабочий диапазон температур -21…-18° С, работают при температуре окр. среды до +25° С и отн влажности до 60%"]
[]
[null,"Xладагент R 404А"]
[null,"Фото","Модель","Линия","Объем","Размер","Описание","Цена*, Руб"]
[null,null,"DB105-S","Stsndard",500,"687х710х1960","Толщина стенки корпуса 43 мм \nЭлектрическая оттайка \nОбогрев дверного проема\nВертикальная LED подсветка выкладки и канапе\nЗамок, 4 полки",71100]
[null,null,"DB107-S","Stsndard",700,"735х960х1996 ","Толщина стенки корпуса 61 мм \nЭлектрическая оттайка \nОбогрев дверного проема\nВертикальная LED подсветка выкладки и канапе\nЗамок, 4 полки",75990]
[null,null,"DB102-S","Stsndard",130,"606х675х870","Толщина стенки корпуса 43 мм \nЭлектрическая оттайка \nОбогрев дверного проема\nLED подсветка \nЗамок, 2 навесные и \nбазовая полки",51000]
[]
[]
[]
[]
[null,"Производитель оставляет за собой право частичного изменения технических характеристик оборудования без принципиальных изменений его эксплуатационных свойств"]

{"sheet":"Фарма","index":9,"n_rows":60,"n_cols":8,"rows_kept":60,"cut":false,"hidden":false,"merged":[[59,2,60,7],[32,2,32,7],[33,2,33,7],[34,2,34,7],[14,2,14,7],[15,2,15,7],[23,2,23,7],[24,2,24,7],[25,2,25,7],[1,6,1,7],[5,2,5,7],[7,2,7,7],[11,2,11,7],[13,2,13,7],[2,5,2,7]]}
[]
[null,null,null,null,null,null,"30.03.2020."]
[]
[]
[]
[null,null,"         ПРАЙС - ЛИСТ  Холодильные шкафы POLAIR фармацевтические"]
[]
[null,null,"Холодильные шкафы фармацевтические POLAIR предназначены для хранения лекарственных препаратов в лечебных и научно-исследовательских учреждениях, фармацевтических предприятиях, аптеках и имеют для этого всю необходимую разрешительную документацию. Универсальный температурный диапазон от +1 до +15°С позволяет использовать одну и ту же модель  как в качестве холодного (+2…+8°С), так и прохладного (+8…+15°С) шкафов.  Цельнозаливные пенополиуретаном корпуса с обшивками из стали с полимерным покрытием, динамическая система охлаждения,  наличие сигнализации об отклонении температуры от заданной, микропереключателя для прекращения вращения вентилятора при открывании двери, замков, светодиодной подсветки, входящих в комплект стандартной поставки, обеспечивают оптимальные условия для хранения и продажи фармацевтических препаратов."]
[]
[null,null,null,null,null,null,null,"* Цена не учитывает стоимость логистических услуг"]
[]
[null,null,"Рекомендованные Розничные Цены - Руб без НДС - на основании пп. 1 п. 2 ст. 149 НК РФ медицинские изделия (изделия медицинского назначения), освобождаются от налогообложения Налогом на добавленную стоимость"]
[]
[null,null,"Холодильные  шкафы  со  стеклянными  дверьми  "]
[null,null,"Рабочий диапазон температур +1…+15° С, работают при температуре окр. среды до +32° С"]
[null,null,"Xладагент R 134а. Толщина стенки корпуса 43 мм"]
[null,null,"Фото"," Модель","Объем","Размер ","Описание","Цена*, Руб без НДС"]
[null,null,null,"ШХФ-0,2ДС",200,"600x630x890","3 полки, микропереключатель, сигнализация об отклонении температуры, внутренняя LED подсветка, теплопакет, замок","33395\n30056"]
[null,null,null,"ШХФ-0,4ДС",400,"600x630x1780","4 полки, микропереключатель, сигнализация об отклонении температуры, внутренняя LED подсветка, теплопакет, замок","39990\n35991"]
[null,null,null,"ШХФ-0,5ДС",500,"697х710х1960","4 полки, микропереключатель, сигнализация об отклонении температуры, вертикальная внутренняя LED подсветка, канапе с LED подсветкой, теплопакет, замок","39680\n35712"]
[null,null,null,"ШХФ-0,7ДС",700,"697х945х1960","4 полки, микропереключатель, сигнализация об отклонении температуры, вертикальная внутренняя LED подсветка, канапе с LED подсветкой, теплопакет, замок","47828\n43045"]
[null,null,null,"ШХФ-1,0ДС",1000,"1402х710х1960","8 полок, микропереключатель, сигнализация об отклонении температуры, вертикальная внутренняя LED подсветка, канапе с LED подсветкой, теплопакет, замки","63630\n57267"]
[null,null,null,"ШХФ-1,4ДС",1400,"1402х945х1960","8 полок, микропереключатель, сигнализация об отклонении температуры, вертикальная внутренняя LED подсветка, канапе с LED подсветкой, теплопакет, замки","69878\n62890"]
[null,null,"Холодильные шкафы с металлическими дверьми  "]
[null,null,"Рабочий диапазон температур +1…+15° С, работают при температуре окр. среды до +40° С"]
[null,null,"Xладагент R 134а. Толщина стенки корпуса 43 мм"]
[null,null,"Фото"," Модель","Объем","Размер ","Описание","Цена*, Руб без НДС"]
[null,null,null,"ШХФ-0,2",200,"600x630x890","3 полки, микропереключатель, сигнализация об отклонении температуры, внутренняя LED подсветка, замок","32525\n29273"]
[null,null,null,"ШХФ-04",400,"600x630x1780","4 полки, микропереключатель, сигнализация об отклонении температуры, внутренняя LED подсветка, замок","39390\n35451"]
[null,null,null,"ШХФ-0,5",500,"697х695х1960","4 полки, микропереключатель, сигнализация об отклонении температуры, внутренняя LED подсветка, замок","39500\n35550"]
[null,null,null,"ШХФ-0,7",700,"697х925х1960","4 полки, микропереключатель, сигнализация об отклонении температуры, внутренняя LED подсветка, замок","42990\n38691"]
[null,null,null,"ШХФ-1,0",1000,"1402х695х1960","8 полок, микропереключатель, сигнализация об отклонении температуры, внутренняя LED подсветка, замок","55250\n49725"]
[null,null,"Холодильные шкафы с металлическими дверьми  "]
[null,null,"Рабочий диапазон температур +1…+15° С, работают при температуре окр. среды до +40° С"]
[null,null,"Xладагент R 134а. Толщина стенки корпуса 43 мм"]
[null,null,"Фото"," Модель","Объем","Размер ","Описание","Цена*, Руб без НДС"]
[null,null,null,"ШХФ-1,4",1400,"1402х925х1960","8 полок, микропереключатель, сигнализация об отклонении температуры, внутренняя LED подсветка, замок","60990\n54891"]
[null,null,null,"ШХКФ-1,4","700/700","1402х925х1960","Двухкамерный. \n8 полок, микропереключатель, сигнализация об отклонении температуры, внутренняя LED подсветка, замок","89900\n80910"]
[]
[]
[]
[]
[]
[]
[]
[]
[]
[]
[]
[]
[]
[]
[]
[]
[]
[]
[]
[]
[]
[null,null,"Производитель оставляет за собой право частичного изменения технических характеристик оборудования без принципиальных изменений его эксплуатационных свойств"]

{"sheet":"Без канапе","index":10,"n_rows":31,"n_cols":10,"rows_kept":31,"cut":false,"hidden":false,"merged":[[16,1,16,7],[30,1,31,7],[1,6,1,7],[2,5,2,7],[4,1,4,7],[6,1,10,7],[13,1,13,4],[14,1,15,7]]}
[]
[null,null,null,null,null,null,"30.03.2020."]
[]
[]
[null,"ПРАЙС - ЛИСТ  Холодильные шкафы POLAIR Standard со стеклянными дверьми  без  канапе"]
[]
[null,"Шкафы POLAIR Standard со стеклянной дверью имеют корпус с обшивками из  стали с полимерным покрытием - снаружи и изнутри. \nОснащены профессиональной динамической системой охлаждения.\nТермоизоляция – пенополиуретан. Корпус герметичный цельнозаливной. \nШкафы имеют вертикальную внутреннюю подсветку. \nДвери в алюминиевых рамах с легкозаменяемым уплотнителем с магнитной вставкой имеют возможность перенавески."]
[]
[]
[]
[]
[]
[]
[null,"Базовые цены с учетом НДС",null,null,null,null,null,"* Цена не учитывает стоимость логистических услуг"]
[null,"Холодильные шкафы со стеклянными дверьми.                                                                                                                                                                                                               Рабочий диапазон температур +1…+10° С, работают при температуре окр. среды до +32° С"]
[null,null,null,null,null,null,null,null,null,"Акция"]
[null,"Xладагент R 134а. Толщина стенки корпуса 43 мм"]
[null,"Фото","Модель","Линия","Объем","Размер","Описание","Цена*, Руб",null,"Цена*, Руб"]
[null,null,"DM105-S\n без канапе","Standard",500,"697х710х1960","Внутренний объем 500л, \n4 полки, вертикальная внутренняя LED подсветка",43000,null,37790]
[null,null,"DM107-S \nбез канапе","Standard",700,"697х945х1960","Внутренний объем 700л, \n4 полки, вертикальная внутренняя LED подсветка, GN 2/1",47777,null,45550]
[null,null,"DM110-S \nбез канапе","Standard",1000,"1402х710х1960","Внутренний объем 1000л, \n8 полок, вертикальная внутренняя подсветка, двери распашные",64640,null,60600]
[null,null,"DM114-S \nбез канапе","Standard",1400,"1402х945х1960","Внутренний объем 1400л, \n8 полок, вертикальная внутренняя LED подсветка, двери распашные, GN 2/1",70000,null,66550]
[]
[]
[]
[]
[]
[]
[]
[]
[null,"Производитель оставляет за собой право частичного изменения технических характеристик оборудования без принципиальных изменений его эксплуатационных свойств"]

{"sheet":"DW","index":11,"n_rows":47,"n_cols":8,"rows_kept":47,"cut":false,"hidden":false,"merged":[[46,1,47,7],[7,1,7,7],[12,4,14,7],[21,4,22,7],[24,4,26,7],[31,1,31,4],[32,1,33,7],[16,4,19,7],[28,4,29,7],[1,6,1,7],[2,5,2,7],[5,1,5,7],[9,4,10,7],[34,1,34,7]]}
[]
[null,null,null,null,null,null,"30.03.2020."]
[]
[]
[]
[null,"ПРАЙС - ЛИСТ  Холодильные шкафы  для продажи и хранения  вина"]
[]
[null,"Специализированные холодильные шкафы для экспозиции и хранения вина незаменимы в энотеках, ресторанах, барах, изысканных интерьерах продуктовых бутиков и т.п. \nШкафы выполнены в мягких коричневых тонах, разработаны специально для создания необходимых для хранения вина условий\n"]
[]
[null,null,null,null,"Угольный фильтр обеспечивает необходимую влажность воздуха (от 50 до 80 %) внутри шкафа и удаляет неприятные запахи. Постоянное обновление воздуха внутри шкафа создает благоприятную атмосферу"]
[]
[]
[null,null,null,null,"Деревянные полки, изготовленные из натурального дуба, позволяют комфортно, в нескольких вариантах экспозиции разместить бутылки с вином и подчеркивают премиальность экспонируемого товара"]
[]
[]
[]
[null,null,null,null,"Светодиодные лампы внутренней подсветки долговечны, устойчивы к вибрациям и смене температуры. Они потребляют на 80% меньше электроэнергии по сравнению с обычными лампами, не излучает ультрафиолетовые и инфракрасные лучи, кроме того, в них не содержится ртуть "]
[]
[]
[]
[]
[null,null,null,null,"Специальное покрытие стекла двери защищает содержимое шкафа от воздействия инфракрасных и ультрафиолетовых лучей"]
[]
[]
[null,null,null,null,"Холодильный шкаф DW104-Bravo имеет 6 температурных зон, позволяющих в одном охлаждаемом объеме экспонировать вина, нуждающиеся в разных температурах хранения: красные, белые и игристые. На 5 навесных и одной базовой полке - для наклонной экспозиции."]
[]
[]
[]
[null,null,null,null,"Шкаф DW102-Bravo комплектуется  полками из натурального дуба: двумя навесными и двухуровневой базовой структурой"]
[]
[]
[null,"Базовые цены с учетом НДС",null,null,null,null,null,"Цена не учитывает стоимость логистических услуг"]
[null,"Холодильные шкафы со стеклянными дверьми.                                                                                                                                                                                                               Рабочий диапазон температур +4…+18° С, работают при температуре окр. среды до +32° С"]
[]
[null,"Xладагент R 134а. Толщина стенки монолитного цельнозаливного корпуса 43 мм"]
[null,"Фото","Модель","Линия","Объем","Размер","Описание","Цена*, Руб"]
[null,null,"DW104-Bravo","Bravo",390,"606*630*1730","6 деревянных  полок: \n5 навесных и 1 базовая, \nвнутренняя LED подсветка, \nзамок\n",57700]
[null,null,"DW102-Bravo","Bravo",150,"606*625*890","\n4 уровня выкладки, \nвнутренняя LED подсветка, \nзамок\n",40400]
[]
[]
[]
[]
[]
[]
[]
[]
[null,"Производитель оставляет за собой право частичного изменения технических характеристик оборудования без принципиальных изменений его эксплуатационных свойств"]

{"sheet":"Столы хол","index":12,"n_rows":63,"n_cols":9,"rows_kept":63,"cut":false,"hidden":false,"merged":[[1,7,1,8],[23,2,23,8],[8,2,8,8],[9,2,9,8],[10,2,10,8],[19,2,19,8],[21,2,21,8],[2,6,2,8],[4,2,4,8],[7,2,7,8],[12,2,12,8],[6,2,6,8],[11,2,11,8],[40,2,40,8],[38,2,38,8],[26,2,26,5],[27,2,27,8],[28,2,28,8],[29,2,29,8],[39,2,39,8],[24,2,24,8],[15,2,15,8],[13,2,13,8],[14,2,14,8],[17,2,17,8],[16,2,16,8],[18,2,18,8],[20,2,20,8],[22,2,22,7],[62,2,63,8],[53,2,53,8],[54,2,54,8],[55,2,55,8],[45,2,45,8],[46,2,46,8],[47,2,47,8]]}
[]
[null,null,null,null,null,null,null,"30.03.2020."]
[]
[]
[null,null,"ПРАЙС-ЛИСТ Холодильные столы"]
[]
[null,null,"Холодильные столы POLAIR представлены моделями - средне - и низкотемпературными."]
[null,null,"Среднетемпературные столы с глухими дверьми работают при температуре окружающей среды до +43°С."]
[null,null,"Диапазон рабочих температур от -2 до +10°С.     "]
[null,null,"Среднетемпературные столы со стеклянными дверьми работают при температуре окружающей среды до +32°С."]
[null,null,"Диапазон рабочих температур от +1 до +10°С - оптимальный для хранения напитков и продуктов.     "]
[null,null,"Низкотемпературные работают при температуре окружающей среды до +32°С. Температура -18°С.     "]
[null,null,"Динамическая система охлаждения  гарантирует равномерное охлаждение продуктов "]
[null,null,"Все элемены холодильной системы вынесены за пределы охлаждаемого пространства"]
[null,null,"Двухъяресный холодильный агрегат расположен в узком агрегатном отсеке и полностью выдвигается для удобства обслуживания"]
[null,null,"Столы соответствуют классу защиты электроприборов IP24"]
[null,null,"Внешние (за исключением задней стенки) и внутренние обшивки корпуса  выполнены из неравеющей стали"]
[null,null,"Двери с термоизоляцией пенополиуретан полностью изготовлены из неравеющей стали. Рамы стеклянных дверей со стеклопакетами изготовлены из алюминия."]
[null,null,"Столешница толщиной 40 мм с бортом высотой 60 мм из нержавеющей стали позволяет применять ее в качестве полноценного рабочего стола. Возможна поставка столов без столешниц."]
[null,null,"Столешница из натурального гранита толщиной 40 мм в моделях для приготовления пиццы, ограниченная с 3 сторон бортами высотой 150 мм, позволяющими утсанавливать на них витрину для ингредиентов - идеальный вариант для организации рабочего места пиццайоло."]
[null,null,"Столы глубиной 700 мм гастронормированы - GN 1/1"]
[null,null,"Любой отсек стола может быть оснащен блоком из выдвижных ящиков вместо глухих дверей:"]
[null,null,"из 2 ящиков  габаритных размеров 415х516/616x339 (200) \nиз 3 ящиков  - 415х516/616x224 (100)\nиз 2 ящиков: верхний -  415х516/616x224 (100), нижний - 415х516/616x454 (320)\n\n"]
[null,null,"Рекомендованную Розничную Цену любого стола, отличающегося от приведенных ниже, можно рассчитать в Программе подбора на сайте www.polair.com"]
[]
[]
[null,null,"Базовые цены с учетом НДС",null,null,null,null,null,"* Цена не учитывает стоимость логистических услуг"]
[null,null,"Холодильные столы среднетемпературные"]
[null,null,"Рабочий диапазон температур   -2...+ 10° С,     работают при температуре окр. среды до + 43° С"]
[null,null,"Хладагент R134a . Толщина стенки корпуса  43 мм"]
[null,null,"Фото"," Модель","Линия","Объем, л","Размер, мм","Описание","Цена*, Руб"]
[null,null,null,"TM2-G","Grande",270,"1200х605х850/910"," Изготовлен из нерж стали \n2 двери. Борт",58189.255932203399]
[null,null,null,"TM2GN-G","Grande",320,"1200х705х850/910"," Изготовлен из нерж стали  \n2 двери. Борт\nGN1/1",59743.626101694921]
[null,null,null,"TM3-G","Grande",400,"1630х605х850/910"," Изготовлен из нерж стали  \n3 двери. Борт",68299.474576271197]
[null,null,null,"TM3GN-G","Grande",450,"1630х705х850/910"," Изготовлен из нерж стали  \n3 двери. Борт\nGN1/1",70709.491525423742]
[null,null,null,"TM4-G","Grande",550,"2060х605х850/909"," Изготовлен из нерж стали  \n4 двери. Борт",82770.254237288129]
[null,null,null,"TM4GN-G","Grande",600,"2060х705х850/910"," Изготовлен из нерж стали  \n4 двери. Борт\nGN1/1",84229.93220338985]
[]
[null,null,"Холодильные столы низкотемпературные"]
[null,null,"Температура:  -18° С,     работают при температуре окр. среды до +32° С"]
[null,null,"Хладагент R404А . Толщина стенки корпуса  43 мм"]
[null,null,"Фото"," Модель","Линия","Объем, л","Размер, мм","Описание","Цена*, Руб"]
[null,null,null,"TВ2GN-G","Grande",320,"1200х705х850/910"," Изготовлен из нерж стали  \n2 двери. Борт\nGN1/1",69689.745762711871]
[null,null,null,"TB3GN-G","Grande",450,"1630х705х850/910"," Изготовлен из нерж стали  \n3 двери. Борт\nGN1/1",85442.52203389832]
[null,null,null,"TB4GN-G","Grande",600,"2060х705х850/910"," Изготовлен из нерж стали  \n4 двери. Борт\nGN1/1",104612.03389830509]
[null,null,"Холодильные столы среднетемпературные для приготовления пиццы"]
[null,null,"Рабочий диапазон температур   -2...+ 10° С,     работают при температуре окр. среды до + 43° С"]
[null,null,"Хладагент R134a . Толщина стенки корпуса  43 мм"]
[null,null,"Фото"," Модель","Линия","Объем, л","Размер, мм","Описание","Цена*, Руб"]
[null,null,null,"TM2pizza-G","Grande",270,"1200х605х850/1000"," Изготовлен из нерж стали. Столешница - натуральный гранит.  \nБорт высотой 150 мм.",101844.06483050848]
[null,null,null,"TM2GNpizza-G","Grande",320,"1200х705х850/1000","Изготовлен из нерж стали. Столешница - натуральный гранит.  \nБорт высотой 150 мм. GN1/1",109342.94415254239]
[null,null,null,"TM3pizza-G","Grande",400,"1630х605х850/1000"," Изготовлен из нерж стали. Столешница - натуральный гранит.  \nБорт высотой 150 мм.",118432.65355932203]
[null,null,null,"TM3GNpizza-G","Grande",450,"1630х705х850/1000","Изготовлен из нерж стали. Столешница - натуральный гранит.  \nБорт высотой 150 мм. GN1/1",121650.38389830508]
[null,null,"Холодильные столы среднетемпературные со стеклянными дверьми"]
[null,null,"Рабочий диапазон температур   +1...+ 10° С,     работают при температуре окр. среды до + 32° С"]
[null,null,"Хладагент R134a . Толщина стенки корпуса  43 мм"]
[null,null,"Фото"," Модель","Линия","Объем, л","Размер, мм","Описание","Цена*, Руб"]
[null,null,null,"TD2-G","Grande",270,"1200х605х850/910"," Изготовлен из нерж стали. LED подсветка.\n2 двери со стеклопакетами в алюминиевых рамах. Борт",63848.5779661017]
[null,null,null,"TD2GN-G","Grande",320,"1200х705х850/910"," Изготовлен из нерж стали. LED подсветка.\n2 двери со стеклопакетами в алюминиевых рамах. Борт. GN1/1",65402.948135593229]
[null,null,null,"TD3-G","Grande",400,"1630х605х850/910"," Изготовлен из нерж стали. LED подсветка.\n3 двери со стеклопакетами в алюминиевых рамах. Борт",76788.457627118638]
[null,null,null,"TD3GN-G","Grande",450,"1630х705х850/910"," Изготовлен из нерж стали. LED подсветка.\n3 двери со стеклопакетами в алюминиевых рамах. Борт. GN1/1",79198.474576271197]
[]
[null,null,"Производитель оставляет за собой право частичного изменения технических характеристик оборудования без принципиальных изменений его эксплуатационных свойств"]

{"sheet":"Витр ингр","index":13,"n_rows":60,"n_cols":9,"rows_kept":60,"cut":false,"hidden":false,"merged":[[12,2,12,8],[8,2,8,8],[10,2,10,8],[11,2,11,8],[1,7,1,8],[2,6,2,8],[3,2,3,8],[5,2,5,8],[6,2,6,8],[9,2,9,8],[7,2,7,8],[59,2,60,8],[16,2,16,8],[17,2,17,8],[13,2,13,8],[14,2,14,5],[15,2,15,8],[19,2,19,8],[20,2,20,8],[27,2,27,8],[34,2,34,8],[35,2,35,8],[45,2,45,8]]}
[]
[null,null,null,null,null,null,null,"30.03.2020."]
[]
[null,null,"ПРАЙС-ЛИСТ настольные витрины"]
[]
[null,null,"Настольные охлаждаемые витрины (витрины для ингредиентов) могут использоваться вместе со столами для пиццы и как отдельные единицы холодильного оборудования"]
[null,null,"Предназначены для установки как с фиксацией на бортах гранитной столешницы столов для пиццы, так и на любых ровных поверхностях (благодаря наличию регулируемых по высоте стопок). В том числе - на столешницах холодильных и нейтральных столов, элементах линий раздачи, барных стойках, прилавках и т.п. "]
[null,null,"Поставляются в трех вариантах исполнения – витрины открытого типа (предназначена для применения с гаcтроемкостями с крышками), с поднимающейся крышкой из нержавеющей стали, с защитным стеклянным колпаком и светодиодной подсветкой. Рассчитаны на применение стандартных гастроемкостей. Гастроемкости в комплект поставки витрин не входят."]
[null,null,"Внешние и внутренние обшивки корпуса витрин  выполнены из пищевой нержавеющей стали"]
[null,null,"Витрины работают при температуре окружающей среды от +12 до +32°С."]
[null,null,"Диапазон рабочих температур от +2 до +10°С.     "]
[null,null,"Оснащены статической системой охлаждения. Хладагент R134a. В качестве терморегулятора применен электронный блок управления."]
[null,null,"Оттайка автоматическая с системой испарения конденсата."]
[]
[null,null,"Базовые цены с учетом НДС",null,null,null,null,null,"* Цена не учитывает стоимость логистических услуг"]
[null,null,"Настольные витрины среднетемпературные"]
[null,null,"Рабочий диапазон температур   +2...+ 10° С,     работают при температуре окр. среды до + 32° С"]
[null,null,"Хладагент R134a "]
[null,null,"Фото"," Модель","Линия","Кол-во гастроемкостей*","Размер, мм","Описание","Цена*, Руб"]
[null,null,"Витрины для установки на борта столов для пиццы POLAIR с боковым расположением агрегата"]
[null,null,"Под гастроемкости GN 1/3"]
[null,null,null,"VT2-G (1/3)","Grande","3+2","1200х400х220","Витрина открытого типа. \nРассчитана на гастроемкости (3xGN1/3 и 2хGN 1/2)",27634.95]
[null,null,null,"VT2-G (1/3) с крышкой ","Grande","3+2","1200х400х245","Витрина с откидной крышкой из нерж стали. \nРассчитана на гастроемкости   (3xGN1/3 и 2хGN 1/2)",29660.400000000001]
[null,null,null,"VT2v-G (1/3)","Grande","3+2","1200х400х420","Витрина со стеклянным защитным колпаком с LED подсветкой. \nРассчитана на гастроемкости   (3xGN1/3 и 2хGN 1/2)",36294.300000000003]
[null,null,null,"VT3-G (1/3)","Grande",7,"1630х400х220","Витрина открытого типа. \nРассчитана на гастроемкости  GN1/3",29353.800000000003]
[null,null,null,"VT3-G (1/3) с крышкой","Grande",7,"1630х400х245","Витрина с откидной крышкой из нерж стали. \nРассчитана на гастроемкости  GN1/3",31275.300000000003]
[null,null,null,"VT3v-G (1/3)","Grande",7,"1630х400х420","Витрина со стеклянным защитным колпаком с LED подсветкой. \nРассчитана на гастроемкости  GN1/3",39113.550000000003]
[null,null,"Под гастроемкости GN 1/4"]
[null,null,null,"VT2-G (1/4)","Grande",5,"1200х340х220","Витрина открытого типа. \nРассчитана на гастроемкости GN1/4 ",26775]
[null,null,null,"VT2-G (1/4) с крышкой ","Grande",5,"1200х340х245","Витрина с откидной крышкой из нерж стали. \nРассчитана на гастроемкости  GN1/4",28875]
[null,null,null,"VT2v-G (1/4)","Grande",5,"1200х340х420","Витрина со стеклянным защитным колпаком с LED подсветкой. \nРассчитана на гастроемкости   GN1/4",34566]
[null,null,null,"VT3-G (1/4)","Grande",7,"1630х340х220","Витрина открытого типа. \nРассчитана на гастроемкости  GN1/4",27573]
[null,null,null,"VT3-G (1/4) с крышкой","Grande",7,"1630х340х245","Витрина с откидной крышкой из нерж стали. \nРассчитана на гастроемкости  GN1/4",29534.400000000001]
[null,null,null,"VT3v-G (1/4)","Grande",7,"1630х340х420","Витрина со стеклянным защитным колпаком с LED подсветкой. \nРассчитана на гастроемкости  GN1/4",35805]
[null,null,"Витрины для установки на борта столов для пиццы POLAIR с нижним расположением агрегата"]
[null,null,"Под гастроемкости GN 1/3"]
[null,null,null,"VTi2-G (1/3)","Grande",3,"900х400х220","Витрина открытого типа. \nРассчитана на гастроемкости GN1/3",26250]
[null,null,null,"VTi2-G (1/3) с крышкой ","Grande",3,"900х400х245","Витрина с откидной крышкой из нерж стали. \nРассчитана на гастроемкости  GN1/3",28203]
[null,null,null,"VTi2v-G (1/3)","Grande",3,"900х400х420","Витрина со стеклянным защитным колпаком с LED подсветкой. \nРассчитана на гастроемкости GN1/3  ",34335]
[null,null,null,"VTi3-G (1/3)","Grande",5,"1375х400х220","Витрина открытого типа. \nРассчитана на гастроемкости  GN1/3",29085]
[null,null,null,"VTi3-G (1/3) с крышкой","Grande",5,"1375х400х245","Витрина с откидной крышкой из нерж стали. \nРассчитана на гастроемкости  GN1/3",31036.95]
[null,null,null,"VTi3v-G (1/3)","Grande",5,"1375х400х420","Витрина со стеклянным защитным колпаком с LED подсветкой. \nРассчитана на гастроемкости  GN1/3",37642.5]
[null,null,null,"VTi4-G (1/3)","Grande",8,"1850х400х220","Витрина открытого типа. \nРассчитана на гастроемкости  GN1/3",31500]
[null,null,null,"VTi4-G (1/3) с крышкой","Grande",8,"1850х400х245","Витрина с откидной крышкой из нерж стали. \nРассчитана на гастроемкости  GN1/3",33705]
[null,null,null,"VTi4v-G (1/3)","Grande",8,"1850х400х420","Витрина со стеклянным защитным колпаком с LED подсветкой. \nРассчитана на гастроемкости  GN1/3",41044.5]
[null,null,"Под гастроемкости GN 1/4"]
[null,null,null,"VTi2-G (1/4)","Grande",3,"900х340х220","Витрина открытого типа. \nРассчитана на гастроемкости (3xGN1/4 и 1хGN 1/2)",25016.25]
[null,null,null,"VTi2-G (1/4) с крышкой ","Grande",3,"900х340х245","Витрина с откидной крышкой из нерж стали. \nРассчитана на гастроемкости   (3xGN1/4 и 1хGN 1/2)",26775]
[null,null,null,"VTi2v-G (1/4)","Grande",3,"900х340х420","Витрина со стеклянным защитным колпаком с LED подсветкой. \nРассчитана на гастроемкости   (3xGN1/4 и 1хGN 1/2)",32539.5]
[null,null,null,"VTi3-G (1/4)","Grande",6,"1375х340х220","Витрина открытого типа. \nРассчитана на гастроемкости  GN1/4",27573]
[null,null,null,"VTi3-G (1/4) с крышкой","Grande",6,"1375х340х245","Витрина с откидной крышкой из нерж стали. \nРассчитана на гастроемкости  GN1/4",29534.400000000001]
[null,null,null,"VTi3v-G (1/4)","Grande",6,"1375х340х420","Витрина со стеклянным защитным колпаком с LED подсветкой. \nРассчитана на гастроемкости  GN1/4",35805]
[null,null,null,"VTi4-G (1/4)","Grande",9,"1850х340х220","Витрина открытого типа. \nРассчитана на гастроемкости  GN1/4",29925]
[null,null,null,"VTi4-G (1/4) с крышкой","Grande",9,"1850х340х245","Витрина с откидной крышкой из нерж стали. \nРассчитана на гастроемкости  GN1/4",32077.5]
[null,null,null,"VTi4v-G (1/4)","Grande",9,"1850х340х420","Витрина со стеклянным защитным колпаком с LED подсветкой. \nРассчитана на гастроемкости  GN1/4",38923.5]
[]
[]
[]
[null,null,"* приведены значения максимального кол-ва гастроемкостей. Гастроемкости в комплект поставки не входят."]
[null,null,"Производитель оставляет за собой право частичного изменения технических характеристик оборудования без принципиальных изменений его эксплуатационных свойств"]

{"sheet":"Столы с охл ст","index":14,"n_rows":22,"n_cols":4,"rows_kept":22,"cut":false,"hidden":false,"merged":[[12,0,12,3],[6,0,7,3],[21,0,21,3],[1,2,1,3],[2,2,2,3],[4,0,4,3],[9,0,9,1],[10,0,10,3],[11,0,11,3]]}
[]
[null,null,"30.03.2020."]
[]
[]
["ПРАЙС - ЛИСТ  Cтолы с охлаждаемой столешницей  POLAIR Grande"]
[]
["Столы идеальны для использования в условиях высоких внешних температур, особенно при работе со скоропортящимися \nпродуктами. \nУдобны для оснащения рынков в отделах, где традиционно применяется открытая выкладка продуктов. \nОптимальны для ресторанов восточной кухни - для приготовления блюд, в том числе, из сырых рыбы и морепродуктов. \nЗаглубление столешницы  и наличие дренажного отверстия позволяют разделывать на столах мясо, рыбу, в том числе, дефростированные, и иные продукты, при обработке которых выделяется большое количество жидкости, используется лед, образуется влага и т.п.  \nКомплектация стола полкой дает возможность эффективно использовать и пространство под столешницей.\nИзготовлены столы из пищевой нержавеющей стали"]
[]
[]
["Базовые цены с учетом НДС",null,null,"Цена не учитывает стоимость логистических услуг"]
["Холодильные столы с охлаждаемой столешницей "]
["Рабочий диапазон температур +1…+10° С"]
["Столы работают при температуре окужающей среды до +32° С "]
["Фото","Модель","Размер","Цена, Руб с НДС"]
[null,"TT1,0GN-G ","1000х700х850",42210]
[null,"TT1,2GN-G","1200х700х850",44310]
[null,"TT1,4GN-G","1400х700х850",45930.15]
[null,"TT1,5GN-G ","1500х700х850",47726.700000000004]
[]
[]
[]
["Производитель оставляет за собой право частичного изменения технических характеристик оборудования без принципиальных изменений его эксплуатационных свойств"]

{"sheet":"Столы bu","index":15,"n_rows":61,"n_cols":9,"rows_kept":61,"cut":false,"hidden":false,"merged":[[12,2,12,8],[13,2,13,8],[14,2,14,8],[15,2,15,8],[16,2,16,8],[1,7,1,8],[9,2,9,8],[10,2,10,8],[11,2,11,8],[2,6,2,8],[3,2,3,8],[6,2,6,8],[7,2,7,8],[8,2,8,8],[4,2,4,8],[17,2,17,8],[18,2,18,8],[19,2,19,8],[20,2,20,5],[21,2,21,8],[47,2,47,8],[48,2,48,8],[57,2,58,8],[22,2,22,8],[23,2,23,8],[36,2,36,8],[37,2,37,8],[38,2,38,8],[46,2,46,8],[31,2,31,8],[32,2,32,8],[33,2,33,8]]}
[]
[null,null,null,null,null,null,null,"30.03.2020."]
[]
[null,null,"ПРАЙС-ЛИСТ Холодильные столы"]
[null,null,"с   нижним   расположением   агрегатов"]
[]
[null,null,"Холодильные столы POLAIR с нижним расположением агрегатов имеют полностью цельнозаливные корпуса \n(включая верхнюю чать корпуса)"]
[null,null,"Среднетемпературные столы с глухими дверьми работают при температуре окружающей среды до +43°С."]
[null,null,"Диапазон рабочих температур от -2 до +10°С.     "]
[null,null,"Низкотемпературные работают при температуре окружающей среды до +32°С. Рабочая температура не выше -18°С.     "]
[null,null,"Динамическая система охлаждения  гарантирует равномерное охлаждение продуктов "]
[null,null,"Холодильный агрегат полностью выдвигается для удобства обслуживания"]
[null,null,"Столы соответствуют классу защиты электроприборов IP24"]
[null,null,"Внешние (за исключением задней стенки) и внутренние обшивки корпуса  выполнены из неравеющей стали"]
[null,null,"Двери с термоизоляцией пенополиуретан полностью изготовлены из неравеющей стали."]
[null,null,"Столешница толщиной 40 мм из нержавеющей стали позволяет применять ее в качестве полноценного рабочего стола. Возможна поставка столов без столешниц."]
[null,null,"Столы глубиной 700 мм гастронормированы - GN 1/1. Верхняя часть саладетты - 2xGN1/1+2GN1/4"]
[null,null,"Любой отсек стола (кроме саладетты) может быть оснащен ящиками вместо дверей - одним высоким или двумя средними"]
[null,null,"Рекомендованную Розничную Цену любого стола, отличающегося от приведенных ниже, можно рассчитать в Программе подбора на сайте www.polair.com"]
[]
[null,null,"Базовые цены с учетом НДС",null,null,null,null,null,"* Цена не учитывает стоимость логистических услуг"]
[null,null,"Холодильные столы среднетемпературные"]
[null,null,"Рабочий диапазон температур   -2...+ 10° С,     работают при температуре окр. среды до + 43° С"]
[null,null,"Хладагент R134a . Толщина стенки корпуса  43 мм"]
[null,null,"Фото"," Модель","Линия","Объем, л","Размер, мм","Описание","Цена*, Руб"]
[null,null,null,"TMi2-G","Grande",153,"900х600х850/910"," Изготовлен из нерж стали снаружи* и изнутри\n2 двери. ",49091.700000000004]
[null,null,null,"TMi2GN-G","Grande",184,"900х700х850/910"," Изготовлен из нерж стали   снаружи* и изнутри\n2 двери. \nGN1/1",52405.5]
[null,null,null,"TMi3-G","Grande",230,"1375х600х850/910"," Изготовлен из нерж стали   снаружи* и изнутри\n3 двери. ",67305]
[null,null,null,"TMi3GN-G","Grande",276,"1375х700х850/910"," Изготовлен из нерж стали   снаружи* и изнутри\n3 двери. \nGN1/1",70770]
[null,null,null,"TMi4-G","Grande",306,"1850х600х850/910"," Изготовлен из нерж стали   снаружи* и изнутри\n4 двери. Борт",83989.5]
[null,null,null,"TMi4GN-G","Grande",368,"1850х700х850/910"," Изготовлен из нерж стали   снаружи* и изнутри\n4 двери. \nGN1/1",88620]
[null,null,"Саладетта"]
[null,null,"Рабочий диапазон температур   0...+ 10° С,     работают при температуре окр. среды до + 32° С"]
[null,null,"Хладагент R134a . Толщина стенки корпуса  43 мм"]
[null,null,"Фото"," Модель","Линия","Объем, л","Размер, мм","Описание","Цена*, Руб"]
[null,null,null,"TMi2GNsal-G","Grande",184,"900х700х850"," Изготовлен из нерж стали  снаружи* и изнутри\n2 двери. Доска для нарезки - полипропилен. Крышка из нерж стали. GN1/1 + 1/4**",64057.118644067807]
[null,null,"Холодильные столы низкотемпературные"]
[null,null,"Рабочий диапазон температур  не выше  -18° С,     работают при температуре окр. среды до +32° С"]
[null,null,"Хладагент R404А . Толщина стенки корпуса  43 мм"]
[null,null,"Фото"," Модель","Линия","Объем, л","Размер, мм","Описание","Цена*, Руб"]
[null,null,null,"TВi2-G","Grande",153,"900х600х850/910"," Изготовлен из нерж стали   снаружи* и изнутри\n2 двери.\nЭлектрическая оттайка",58194.915254237298]
[null,null,null,"TВi2GN-G","Grande",184,"900х700х850/910"," Изготовлен из нерж стали   снаружи* и изнутри\n2 двери.\nЭлектрическая оттайка\nGN1/1",59262.711864406781]
[null,null,null,"TBi3-G","Grande",230,"1375х600х850/910"," Изготовлен из нерж стали   снаружи* и изнутри\n3 двери.\nЭлектрическая оттайка",76561.016949152545]
[null,null,null,"TBi3GN-G","Grande",276,"1375х700х850/910"," Изготовлен из нерж стали   снаружи* и изнутри\n3 двери.\nЭлектрическая оттайка\nGN1/1",78344.237288135584]
[null,null,null,"TBi4-G","Grande",306,"1850х600х850/910"," Изготовлен из нерж стали  \n4 двери.\nЭлектрическая оттайка",94710]
[null,null,null,"TBi4GN-G","Grande",368,"1850х700х850/910"," Изготовлен из нерж стали   снаружи* и изнутри\n4 двери.\nЭлектрическая оттайка\nGN1/1",99687]
[null,null,"Холодильные столы среднетемпературные для приготовления пиццы"]
[null,null,"Рабочий диапазон температур   -2...+ 10° С,     работают при температуре окр. среды до + 43° С"]
[null,null,"Хладагент R134a . Толщина стенки корпуса  43 мм"]
[null,null,"Фото"," Модель","Линия","Объем, л","Размер, мм","Описание","Цена*, Руб"]
[null,null,null,"TMi2pizza-G","Grande",153,"900х600х850/1000"," Изготовлен из нерж стали  снаружи* и изнутри. Столешница - натуральный гранит.  \nБорт высотой 150 мм.",89985]
[null,null,null,"TMi2GNpizza-G","Grande",184,"900х700х850/1000","Изготовлен из нерж стали снаружи* и изнутри. Столешница - натуральный гранит.  \nБорт высотой 150 мм. GN1/1",94778.25]
[null,null,null,"TMi3pizza-G","Grande",230,"1375х600х850/1000"," Изготовлен из нерж стали снаружи* и изнутри. Столешница - натуральный гранит.  \nБорт высотой 150 мм.",115080]
[null,null,null,"TMi3GNpizza-G","Grande",276,"1375х700х850/1000","Изготовлен из нерж стали снаружи* и изнутри. Столешница - натуральный гранит.  \nБорт высотой 150 мм. GN1/1",119175]
[null,null,null,"TMi4pizza-G","Grande",306,"1850х600х850/1000"," Изготовлен из нерж стали снаружи* и изнутри. Столешница - натуральный гранит.  \nБорт высотой 150 мм.",143850]
[null,null,null,"TMi4GNpizza-G","Grande",368,"1850х700х850/1000","Изготовлен из нерж стали снаружи* и изнутри. Столешница - натуральный гранит.  \nБорт высотой 150 мм. GN1/1",146989.5]
[]
[null,null,"Производитель оставляет за собой право частичного изменения технических характеристик оборудования без принципиальных изменений его эксплуатационных свойств"]
[]
[null,null,"* за исключением внешней задней стенки"]
[null,null,"**гастроемкости в комплект поставки не входят"]

{"sheet":"Столы GC","index":16,"n_rows":59,"n_cols":9,"rows_kept":59,"cut":false,"hidden":false,"merged":[[13,2,13,8],[1,7,1,8],[2,6,2,8],[3,2,3,8],[6,2,6,8],[7,2,7,8],[8,2,8,8],[9,2,9,8],[10,2,10,8],[11,2,11,8],[12,2,12,8],[4,2,4,8],[22,2,22,5],[23,2,23,8],[14,2,14,8],[15,2,15,8],[16,2,16,8],[17,2,17,8],[18,2,18,7],[20,2,20,8],[58,2,59,8],[24,2,24,8],[25,2,25,8],[32,2,32,8],[33,2,33,8],[34,2,34,8],[39,2,39,8],[40,2,40,8],[41,2,41,8]]}
[]
[null,null,null,null,null,null,null,"30.03.2020."]
[]
[null,null,"ПРАЙС-ЛИСТ "]
[null,null,"Холодильные столы  кубического дизайна"]
[]
[null,null,"Холодильные столы POLAIR GC отличает легкий изящный дизайн "]
[null,null,"Среднетемпературные столы с глухими дверьми работают при температуре окружающей среды до +43°С."]
[null,null,"Диапазон рабочих температур от -2 до +10°С.     "]
[null,null,"Среднетемпературные столы со стеклянными дверьми работают при температуре окружающей среды до +32°С."]
[null,null,"Диапазон рабочих температур от +1 до +10°С.     "]
[null,null,"Низкотемпературные работают при температуре окружающей среды до +32°С. Температура:  -18°С.     "]
[null,null,"Компактный цельнозаливной корпус обеспечиывает надежное хранение продуктов при высоких внешних температурах"]
[null,null,"Динамическая система охлаждения  гарантирует равномерное охлаждение "]
[null,null,"Все элемены холодильной системы вынесены за пределы охлаждаемого пространства"]
[null,null,"Двухъяресный холодильный агрегат расположен в узком агрегатном отсеке и выдвигается для обслуживания"]
[null,null,"Столешница толщиной 40 мм с бортом высотой 60 мм из нержавеющей стали позволяет применять ее в качестве полноценного рабочего стола. Возможна поставка столов без столешниц."]
[null,null,"Любой отсек среднетемпературного стола может быть оснащен блоком из выдвижных ящиков вместо глухих дверей:"]
[null,null,"из 2 ящиков  габаритных размеров 415х516/616x339 (200) \nиз 3 ящиков  - 415х516/616x224 (100)\nиз 2 ящиков: верхний -  415х516/616x224 (100), нижний - 415х516/616x454 (320)"]
[]
[null,null,"Рекомендованную Розничную Цену любого стола, отличающегося от приведенных ниже, можно рассчитать в Программе подбора на сайте www.polair.com"]
[]
[null,null,"Базовые цены с учетом НДС",null,null,null,null,null,"* Цена не учитывает стоимость логистических услуг"]
[null,null,"Холодильные столы среднетемпературные"]
[null,null,"Рабочий диапазон температур   -2...+ 10° С,     работают при температуре окр. среды до + 43° С"]
[null,null,"Хладагент R134a . Толщина стенки корпуса  43 мм"]
[null,null,"Фото"," Модель","Линия","Объем, л","Размер, мм","Описание","Цена*, Руб"]
[null,null,null,"TM2-GC","Grande С",270,"1200х605х850/910"," Изготовлен из нерж стали \n2 двери. Борт",56328.193220338988]
[null,null,null,"TM2GN-GC","Grande С",320,"1200х705х850/910"," Изготовлен из нерж стали  \n2 двери. Борт\nGN1/1",57927.966101694925]
[null,null,null,"TM3-GC","Grande С",400,"1630х605х850/910"," Изготовлен из нерж стали  \n3 двери. Борт",66162.066101694916]
[null,null,null,"TM3GN-GC","Grande С",450,"1630х705х850/910"," Изготовлен из нерж стали  \n3 двери. Борт\nGN1/1",67466.785423728812]
[null,null,null,"TM4GN-GC","Grande С",600,"2060х705х850/910"," Изготовлен из нерж стали  \n4 двери. Борт\nGN1/1",82572.711864406796]
[null,null,"Холодильные столы низкотемпературные"]
[null,null,"Температура:  -18° С,     работают при температуре окр. среды до +32° С"]
[null,null,"Хладагент R404А . Толщина стенки корпуса  43 мм"]
[null,null,"Фото"," Модель","Линия","Объем, л","Размер, мм","Описание","Цена*, Руб"]
[null,null,null,"TВ2GN-GC","Grande С",320,"1200х705х850/910"," Изготовлен из нерж стали  \n2 двери. Борт\nGN1/1",67484.745762711871]
[null,null,null,"TB3GN-GC","Grande С",450,"1630х705х850/910"," Изготовлен из нерж стали  \n3 двери. Борт\nGN1/1",82294.636271186449]
[null,null,null,"TB4GN-GC","Grande С",600,"2060х705х850/910"," Изготовлен из нерж стали  \n4 двери. Борт\nGN1/1",101184.40677966102]
[null,null,"Холодильные столы среднетемпературные для приготовления пиццы"]
[null,null,"Рабочий диапазон температур   -2...+ 10° С,     работают при температуре окр. среды до + 43° С"]
[null,null,"Хладагент R134a . Толщина стенки корпуса  43 мм"]
[null,null,"Фото"," Модель","Линия","Объем, л","Размер, мм","Описание","Цена*, Руб"]
[null,null,null,"TM2pizza-GC","Grande С",270,"1200х605х850/1000"," Изготовлен из нерж стали. Столешница - натуральный гранит.  \nБорт высотой 150 мм.",99705.188135593227]
[null,null,null,"TM2GNpizza-GC","Grande С",320,"1200х705х850/1000","Изготовлен из нерж стали. Столешница - натуральный гранит.  \nБорт высотой 150 мм. GN1/1",106773.20084745764]
[null,null,null,"TM3pizza-GC","Grande С",400,"1630х605х850/1000"," Изготовлен из нерж стали. Столешница - натуральный гранит.  \nБорт высотой 150 мм.",115343.80627118643]
[null,null,null,"TM3GNpizza-GC","Grande С",450,"1630х705х850/1000","Изготовлен из нерж стали. Столешница - натуральный гранит.  \nБорт высотой 150 мм. GN1/1",117744.14898305084]
[]
[]
[]
[]
[]
[]
[]
[]
[]
[]
[]
[null,null,"Производитель оставляет за собой право частичного изменения технических характеристик оборудования без принципиальных изменений его эксплуатационных свойств"]

{"sheet":"Камеры со стеклом","index":17,"n_rows":52,"n_cols":5,"rows_kept":52,"cut":false,"hidden":false,"merged":[[53,2,54,2],[4,1,4,4],[6,1,7,4],[12,1,15,1],[17,1,20,1],[22,1,25,1],[28,1,31,1],[33,1,37,1],[39,1,44,1],[45,1,45,4],[46,1,49,1],[51,1,51,4],[55,2,56,2],[60,2,61,2],[60,3,60,4],[62,2,63,2],[64,2,65,2]]}
[]
[null,null,null,null,"2020-03-30"]
[]
[]
[null,"ПРАЙС - ЛИСТ  КАМЕРЫ ХОЛОДИЛЬНЫЕ МОДУЛЬНЫЕ СО СТЕКЛОМ"]
[]
[null,"Все холодильные камеры со стеклом  выпускаются на базе стандартных камер \"Полаир\" с толщиной  панелей  80 мм. Размер стеклянного блока по высоте 1830 мм. Стеклянные дверные блоки одностворчатые имееют ширину 900 мм, двухстворчатые - 1200 мм."]
[]
[null,"Комплектация: профиль соединительный для соединения стеклоблоков друг с другом; профиль отделочный с внутренней "]
[null,"и наружной стороны камеры; ручка двери; замок (по запросу); метизы."]
[]
[null,null,null,null,"Цена, Руб."]
[null,"КХН-2,94cт(1360*1360*2200)","Стекл. блок по стороны 1360, дверь унив.по смежной стороне",null,74104.800000000003]
[null,null,"Стекл.блок с двухстворчатой  дверью по стороне 1360",null,83170.5]
[null,null,"Стекл. блок по двум сторонам,  дв.стекл. двухств. по стороне 1360",null,96331.199999999997]
[]
[]
[null,"КХН-4,41ст(1960*1360*2200)","Стекл. блок по стороны 1960, дверь унив.по смежной стороне",null,88958.1]
[null,null,"Стекл.блок с одностворчатой  дверью по стороне 1960",null,88509.75]
[null,null,"Стекл. блок по двум смежным сторонам,  дв.стекл. одноств.по ст.1960",null,99689.1]
[]
[]
[null,"КХН-6,61ст(1960*1960*2200)","Стекл. блок по стороны 1960, дверь унив.по смежной стороне",null,104825.70000000001]
[null,null,"Стекл.блок с одностворчатой  дверью по стороне 1960",null,104377.35]
[null,null,"Стекл. блок по двум смежным сторонам,  дв.стекл. одноств.по ст.1960",null,119438.55]
[]
[]
[]
[null,"КХН-7,71ст(2260*1960*2200)","Стекл. блок по стороны 2260, дверь унив.по смежной стороне",null,117083.40000000001]
[null,null,"Стекл.блок с одностворчатой  дверью по стороне 2260",null,116635.05]
[null,null,"Стекл. блок по двум смежным сторонам,  дв.стекл. одноств.по ст.2260",null,128947.35]
[]
[]
[null,"КХН-8,81ст(2560*1960*2200)","Стекл. блок по стороны 1960, дверь унив.по смежной стороне",null,120693]
[null,null,"Стекл.блок с одностворчатой  дверью по стороне 1960",null,120245]
[null,null,"Стекл. блок по стороны 2560, дверь унив.по смежной стороне",null,125744]
[null,null,"Стекл.блок с одностворчатой  дверью по стороне 2560",null,125295]
[null,null,"Стекл. блок по двум смежным сторонам,  дв.стекл. одноств.по ст.2560",null,138525]
[]
[null,"КХН-11,02ст(3160*1960*2200)","Стекл. блок по стороны 1960, дверь унив.по смежной стороне",null,136560.9]
[null,null,"Стекл.блок с одностворчатой  дверью по стороне 1960",null,136112.55000000002]
[null,null,"Стекл. блок по стороны 3160, дверь унив.по смежной стороне",null,146661.9]
[null,null,"Стекл.блок с одностворчатой  дверью по стороне 3160",null,146213.55000000002]
[null,null,"Стекл. блок по двум  сторонам,  дв.стекл. одноств.по ст.3160",null,157617.60000000001]
[null,null,"Стекл. блок по двум  сторонам,  дв.стекл. двухств.по ст.3160",null,171263.4]
[]
[null,"КХН-11,75ст(2560*2560*2200)","Стекл. блок по стороны 2560, дверь унив.по смежной стороне",null,144077.85]
[null,null,"Стекл.блок с одностворчатой  дверью по стороне 2560",null,143619]
[null,null,"Стекл. блок по двум смежным сторонам,  дв.стекл. одноств.по ст.2560",null,160585.95000000001]
[]
[]
[null,"Производитель оставляет за собой право частичного изменения технических характеристик оборудования без принципиальных изменений его эксплуатационных свойств"]

{"sheet":"Камеры-Standard 80","index":18,"n_rows":132,"n_cols":8,"rows_kept":132,"cut":false,"hidden":false,"merged":[[76,0,85,0],[2,6,2,7],[3,0,5,7],[6,6,6,7],[7,0,7,7],[8,0,8,7],[9,0,9,1],[9,2,9,3],[9,4,9,5],[9,6,9,7],[11,0,25,0],[26,0,39,0],[40,0,52,0],[53,0,64,0],[65,0,75,0],[125,0,127,0],[128,0,129,0],[131,0,133,7],[86,0,94,0],[95,0,102,0],[103,0,109,0],[110,0,115,0],[116,0,120,0],[121,0,124,0]]}
[]
[]
[null,null,null,null,null,null,"2020-03-30"]
["Сборно-разборные холодильные камеры из сендвич-панелей с соединением                                                        ШИП-ПАЗ из жесткого ПВХ "]
[]
[]
[null,null,null,null,null,null,"толщина панели 80 мм"]
["ПРАЙС-ЛИСТ -  КАМЕРЫ POLAIR Standard (80мм) ИЗ СТАНДАРТНЫХ ПАНЕЛЕЙ"]
["Базовые цены с учетом НДС                      "]
["Внешние габариты",null,"Высота 2 200 мм",null,"Высота 2 460 мм",null,"Высота 2 720 мм"]
["Длина","Ширина","объём, м3","Цена, Руб.","объём, м3","Цена, Руб.","объём, м3","Цена, Руб."]
[1360,1360,2.94,0,3.31,65703.399199280102,3.69,70330.168144437179]
[null,1660,3.67,68010.7030779661,4.1399999999999997,72530.606796263775,4.6100000000000003,77628.026596244861]
[null,1960,4.41,0,4.97,79358.325293689617,5.53,84925.885048052573]
[null,2260,5.14,80712.047862457635,5.8,86186.254560658475,6.45,92235.514239298689]
[null,2560,5.88,87079.930365279681,6.62,93024.153781671484,7.37,99533.372691106415]
[null,2860,6.61,93424.358922577027,7.45,99839.411916504789,8.2899999999999991,106831.23114291408]
[null,3160,7.34,99768.787479874401,8.2799999999999994,106666.4407907765,9.2200000000000006,114129.08959472184]
[null,3460,8.08,106136.75751604853,9.11,113493.46966504825,10.14,121438.71878596793]
[null,3760,8.81,112481.18607334587,9.94,120320.49853931999,11.06,128724.80649833725]
[null,4060,9.5500000000000007,118849.15610952003,10.76,127147.5274135917,11.98,136022.66495014491]
[null,4360,10.28,125193.58466681736,11.59,133974.55628786341,12.9,143320.52340195264]
[null,4660,11.02,131561.55470299153,12.42,140872.20959876556,13.82,150618.38185376034]
[null,4960,11.75,137905.98326028883,13.25,147628.61403640689,14.75,157928.01104500642]
[null,5260,12.48,144262.18255702464,14.08,154455.64291067858,15.67,165225.86949681421]
[null,5560,13.22,150618.38185376034,14.9,161282.6717849503,16.59,172523.72794862185]
[1660,1660,4.59,74956.068743728189,5.17,79946.862265609598,5.76,85526.192759410958]
[null,1960,5.51,81900.805012383906,6.21,87433.052548431675,6.91,93400.817443700245]
[null,2260,6.43,88821.999802162827,7.25,94766.223218554616,8.06,101275.44212798955]
[null,2560,7.34,95766.736070818573,8.2799999999999994,102181.78906474629,9.2200000000000006,105489.36684693654]
[null,2860,8.26,102699.70160003587,9.31,109585.58417149958,10.37,117048.23297544487]
[null,3160,9.18,109644.43786869159,10.35,116989.37927825289,11.52,124922.85765973417]
[null,3460,10.1,116577.4033979089,11.39,124416.71586388299,12.67,132821.02382290026]
[null,3760,11.02,123522.13966656463,12.42,131820.51097063627,13.82,140695.6485071895]
[null,4060,11.93,130466.87593522036,13.46,139236.07681682799,14.98,148593.81467035564]
[null,4360,12.85,137388.07072499927,14.49,146639.87192358129,16.13,156468.43935464491]
[null,4660,13.77,144332.80699365496,15.53,154055.43776977301,17.28,164343.06403893419]
[null,4960,14.69,151265.77252287231,16.559999999999999,161459.23287652628,18.43,169204.37942699314]
[null,5260,15.61,158210.50879152803,17.59,168874.79872271803,19.579999999999998,172241.2302021003]
[null,5560,16.52,165143.4743207453,18.63,176278.5938294713,20.74,176054.94978014173]
[1960,1960,6.61,{"$error":"#VALUE!"},7.45,95354.760190474582,8.2899999999999991,97814.84473310005]
[null,2260,7.71,{"$error":"#VALUE!"},8.69,103347.09226914783,9.68,110338.91149555717]
[null,2560,8.81,{"$error":"#VALUE!"},9.94,111351.1950872595,11.06,118813.84389120482]
[null,2860,9.91,111190.76518778392,11.18,119331.75642649439,12.44,127265.23480797568]
[null,3160,11.02,{"$error":"#VALUE!"},12.42,127371.17146292129,13.82,135740.16720362334]
[null,3460,12.12,127029.82001920771,13.66,135339.96206271774,15.21,144203.32885983257]
[null,3760,13.22,134551.32252034498,14.9,143320.52340195264,16.59,152678.26125548023]
[null,4060,14.32,142072.82502148228,16.149999999999999,151324.62622006433,17.97,161141.4229116895]
[null,4360,15.42,149594.3275226196,17.39,159305.18755929917,19.350000000000001,165178.78653906056]
[null,4660,16.52,157115.83002375689,18.63,164966.91322916938,20.74,166909.08523650529]
[null,4960,17.63,164637.33252489418,19.87,167309.29037741089,22.12,170593.32668072433]
[null,5260,18.73,172158.83502603145,21.11,170428.53632858672,23.5,175513.4957659753]
[null,5560,19.829999999999998,179680.33752716877,22.36,172170.60576546987,24.88,183129.16418261983]
[2260,2260,9,105042.07874827736,10.14,111916.1905803027,11.29,114776.48026383379]
[null,2560,10.28,113152.11822133465,11.59,120497.05963089592,12.9,128430.53801237725]
[null,2860,11.57,121262.15769439191,13.04,129077.92868148921,14.52,137494.00737994484]
[null,3160,12.85,129372.19716744918,14.49,137658.79773208243,16.13,146545.70600807411]
[null,3460,14.14,137458.69516162967,15.94,146251.43752211411,17.739999999999998,155597.40463620337]
[null,3760,15.42,145568.73463468696,17.39,153478.67153729146,19.350000000000001,159222.79238323035]
[null,4060,16.71,153678.77410774425,18.84,159340.49977761434,20.97,160388.09558763198]
[null,4360,17.989999999999998,161788.81358080148,20.29,162518.59942598228,22.58,164472.54217275657]
[null,4660,19.28,164437.2299544414,21.73,164755.03991927818,24.19,172617.893864129]
[null,4960,20.56,167497.62220842522,23.18,170228.43375813394,25.8,180763.24555550155]
[null,5260,21.85,169651.66752565239,24.63,177950.03882972401,27.42,188908.59724687395]
[null,5560,23.13,174795.48066023298,26.08,185659.87316187576,29.03,197065.71967768486]
[2560,2560,11.75,{"$error":"#VALUE!"},13.25,124251.92551174542,14.75,131314.36917478513]
[null,2860,13.22,130525.72963241235,14.9,138824.10093648403,16.59,147711.00921247565]
[null,3160,14.69,139224.30607738963,16.559999999999999,147993.50695899723,18.43,153290.33970627701]
[null,3460,16.16,147911.11178292846,18.22,157162.91298151042,20.28,155703.34129114894]
[null,3760,17.63,156597.91748846733,19.87,163613.27819375342,22.12,158952.06537614722]
[null,4060,19.09,159199.2509043536,21.53,166061.59199694046,23.96,167638.87108168605]
[null,4360,20.56,164413.68847556459,23.18,168898.3402015949,25.8,176302.13530834814]
[null,4660,22.03,166532.42157447647,24.84,174430.58773764258,27.65,184977.17027444858]
[null,4960,23.5,172217.68872322355,26.5,182681.87608396061,29.49,193640.43450111063]
[null,5260,24.97,180045.23044975914,28.15,190933.16443027873,31.33,202315.46946721105]
[null,5560,26.44,187872.77217629488,29.81,199172.68203715837,33.18,210990.50443331155]
[2860,2860,14.87,150417.10220936371,16.766999999999999,159194.54260857822,18.662399999999998,168542.8638705551]
[null,3160,16.52,160805.95683769518,18.63,170055.40388838956,20.736000000000001,161888.8648660279]
[null,3460,18.18,171194.81146602656,20.492999999999999,162824.63865138066,22.809600000000003,172088.21058940105]
[null,3760,19.829999999999998,181583.66609435796,22.355999999999998,172600.23775497143,24.883199999999999,182288.73338671809]
[null,4060,21.48,172774.44469865973,24.218999999999998,182374.65978461839,26.956799999999998,192488.07911009135]
[null,4360,23.13,182123.94303458047,26.082000000000001,192149.08181426537,29.030400000000004,202688.6019074083]
[null,4660,24.79,191474.61844444514,27.945,201924.68091785623,31.103999999999999,212887.94763078156]
[null,4960,26.44,200824.11678036585,29.808,211699.10294750318,33.177600000000005,223088.47042809858]
[null,5260,28.09,210173.61511628656,31.670999999999999,221473.52497715014,35.251199999999997,233287.81615147169]
[null,5560,29.74,219523.1134522073,33.533999999999999,231249.1240807409,37.324799999999996,243488.33894878876]
[3160,3160,18.36,171895.17046261131,20.7,163479.09176415563,23.04,172719.12222329932]
[null,3460,20.2,164686.76963053548,22.769999999999996,173860.88394882405,25.344000000000001,183550.55665451457]
[null,3760,22.03,174667.17960035437,24.839999999999996,184267.39468631305,27.647999999999996,194380.8140117859]
[null,4060,23.87,184647.58957017344,26.909999999999997,194672.72834985817,29.951999999999995,205212.24844300121]
[null,4360,25.7,194627.99953999231,28.98,205078.06201340345,32.256,216042.50580027254]
[null,4660,27.54,204609.58658375512,31.049999999999997,215484.57275089246,34.56,226873.94023148785]
[null,4960,29.38,214589.99655357402,33.119999999999997,225889.90641443766,36.864000000000004,237704.19758875921]
[null,5260,31.21,224570.40652339309,35.19,236295.24007798277,39.167999999999999,248534.4549460306]
[null,5560,33.049999999999997,234550.81649321201,37.259999999999991,246701.75081547181,41.471999999999994,259365.88937724585]
[3460,3460,22.215599999999995,175298.09123425267,25.046999999999993,184898.30632021127,27.878399999999999,195011.72564568411]
[null,3760,24.235199999999995,185909.41283796984,27.323999999999998,195934.55161765471,30.412799999999997,206474.07171079758]
[null,4060,26.254799999999992,196520.73444168706,29.600999999999996,206970.79691509806,32.947199999999995,217935.24070196724]
[null,4360,28.274400000000004,207132.05604540417,31.878,218008.21928648528,35.4816,229396.4096931369]
[null,4660,30.293999999999997,217744.55472306517,34.154999999999994,229044.4645839287,38.015999999999998,240858.75575825028]
[null,4960,32.313600000000001,228355.87632678234,36.431999999999995,240080.70988137214,40.550399999999996,252319.92474941994]
[null,5260,34.333199999999998,238967.19793049953,38.708999999999996,251116.95517881555,43.084799999999994,263782.27081453335]
[null,5560,36.352799999999995,249578.51953421667,40.98599999999999,262154.37755020271,45.619199999999992,275243.439805703]
[3760,3760,26.438399999999998,197151.64607558516,29.808,207601.70854899625,33.177599999999998,218566.15233586551]
[null,4060,28.641599999999997,208393.8793132006,32.291999999999994,219270.04255428174,35.942399999999992,230658.23296093327]
[null,4360,30.844800000000006,219637.28962475984,34.776000000000003,230937.19948562334,38.7072,242751.49065994498]
[null,4660,33.048000000000002,230879.52286237516,37.26,242604.35641696499,41.472000000000001,254843.57128501276]
[null,4960,35.251199999999997,242121.75609999057,39.744,254271.51334830662,44.236800000000002,266936.82898402447]
[null,5260,37.4544,253363.98933760592,42.227999999999994,265939.84735359199,47.001599999999996,279028.90960909228]
[null,5560,39.657599999999995,264606.22257522139,44.711999999999996,277607.00428493368,49.766399999999997,291120.9902341601]
[4060,4060,31.028399999999994,220268.20125865799,34.982999999999997,231568.11111952158,38.937599999999989,243382.4022938431]
[null,4360,33.415200000000006,232141.34613017162,37.673999999999999,243866.17968476136,41.9328,256105.39455280924]
[null,4660,35.802,244014.49100168521,40.364999999999995,256164.2482500012,44.927999999999997,268829.56388571905]
[null,4960,38.188800000000001,256476.17284511877,43.055999999999997,268462.31681524107,47.923200000000001,281552.55614468514]
[null,5260,40.575600000000001,267760.78074471245,45.746999999999993,280526.14766565675,50.918399999999998,294275.54840365122]
[null,5560,42.962399999999995,279633.92561622604,48.437999999999988,293059.63101966458,53.913599999999988,306999.71773656108]
[4360,4360,35.985600000000005,244763.11002996747,40.572000000000003,256795.15988389938,45.158400000000007,269460.47551961732]
[null,4660,38.555999999999997,257149.45914099526,43.47,269724.14008303749,48.384,282814.37941248162]
[null,4960,41.126400000000004,269653.51564640703,46.367999999999995,282654.29735611938,51.6096,296168.28330534586]
[null,5260,43.696800000000003,282157.57215181884,49.265999999999998,295583.27755525737,54.8352,309523.36427215394]
[null,5560,46.267199999999995,294661.6286572307,52.163999999999994,308512.25775439537,58.060799999999993,322877.26816501829]
[4660,4660,41.31,270284.4272803053,46.574999999999996,283285.20899001765,51.839999999999996,296799.19493924401]
[null,4960,44.064,283419.39541961532,49.679999999999993,296845.10082305386,55.295999999999999,310785.18753995036]
[null,5260,46.817999999999998,296554.36355892528,52.784999999999997,310404.99265609006,58.751999999999995,324770.00306671287]
[null,5560,49.571999999999989,309689.33169823536,55.889999999999993,323964.88448912615,62.207999999999991,338754.81859347539]
[4960,4960,47.001599999999996,297185.27519282355,52.991999999999997,311035.90428998822,58.982399999999998,325400.91470061103]
[null,5260,49.9392,310951.15496603178,56.303999999999995,325226.70775692264,62.66879999999999,340016.64186127175]
[null,5560,52.876799999999989,324717.03473924001,59.615999999999985,339417.51122385706,66.355199999999982,354632.36902193242]
[5260,5260,53.060399999999994,325347.94637313823,59.822999999999986,340048.42285775539,66.585599999999985,355263.28065583069]
[null,5560,56.181599999999989,339744.73778024479,63.341999999999985,354870.13795858814,70.50239999999998,370511.09652433346]
[5560,5560,59.47,354772.44082124939,67.069999999999993,370323.94176726288,74.650000000000006,386388.64695279056]
["Цены на оборудование ТМ «POLAIR», указанные в настоящем прайс-листе являются рекомендованными и могут отличаться от розничных цен у наших дилеров и региональных представителей."]

{"sheet":"Камеры-Professionale 100","index":19,"n_rows":134,"n_cols":10,"rows_kept":134,"cut":false,"hidden":false,"merged":[[77,0,86,0],[1,8,1,9],[3,0,5,9],[6,8,6,9],[7,0,7,9],[9,0,9,9],[10,0,10,1],[10,2,10,3],[10,5,10,6],[10,8,10,9],[12,0,26,0],[27,0,40,0],[41,0,53,0],[54,0,65,0],[66,0,76,0],[126,0,128,0],[129,0,130,0],[133,0,133,9],[87,0,95,0],[96,0,103,0],[104,0,110,0],[111,0,116,0],[117,0,121,0],[122,0,125,0]]}
[]
[null,null,null,null,null,null,null,null,"2020-03-30"]
[]
["Сборно-разборные холодильные камеры из сендвич-панелей с соединением                  ШИП-ПАЗ из жесткого ПВХ "]
[]
[]
[null,null,null,null,null,null,null,null,"толщина панели 100 мм"]
["ПРАЙС-ЛИСТ -  КАМЕРЫ POLAIR Professionale (100мм) ИЗ СТАНДАРТНЫХ ПАНЕЛЕЙ"]
[]
["Базовые цены с учетом НДС"]
["Внешние габариты",null,"Высота 2 240 мм",null,null,"Высота 2 500 мм",null,null,"Высота 2 760 мм"]
["Длина","Ширина","объём, м3","Цена, Руб.","Цена, Руб","объём, м3","Цена, Руб.","Цена, Руб","объём, м3","Цена, Руб."]
[1400,1400,2.94,70859.851419165134,0,3.31,75709.396067785754,0,3.69,81442.2]
[null,1700,3.67,78534.373533001635,0,4.1399999999999997,83925.37219578863,0,4.6100000000000003,90176.1]
[null,2000,4.41,86220.666386276527,0,4.97,92129.577584353086,0,5.53,95966.85]
[null,2300,5.14,93895.188500112999,0,5.8,100333.78297291756,0,6.45,103559.40000000001]
[null,2600,5.88,98497.547620527228,0,6.62,104865.5176567014,0,7.37,111150.90000000001]
[null,2900,6.61,109267.77420666281,0,7.45,116753.96448948489,0,8.2899999999999991,125111.70000000001]
[null,3200,7.34,116942.29632049928,0,8.2799999999999994,124958.16987804938,0,9.2200000000000006,133845.6]
[null,3500,8.08,124628.58917377419,0,9.11,133174.14600605224,0,10.14,142591.05000000002]
[null,3800,8.81,132314.88202704908,0,9.94,141378.35139461674,0,11.06,151324.95000000001]
[null,4100,9.5500000000000007,139989.40414088557,0,10.76,149582.55678318115,0,11.98,160046.25]
[null,4400,10.28,147675.69699416045,0,11.59,157798.53291118401,0,12.9,168780.15]
[null,4700,11.02,155361.98984743532,0,12.42,166002.7382997486,0,13.82,177526.65]
[null,5000,11.75,163036.51196127184,0,13.25,174206.94368831301,0,14.75,186260.55000000002]
[null,5300,12.48,170722.80481454675,0,14.08,182422.91981631581,0,15.67,194994.45]
[null,5600,13.22,178409.0976678216,0,14.9,190627.12520488029,0,16.59,197689.80000000002]
[1700,1700,4.59,86985.764449772512,0,5.17,92894.675647849042,0,5.76,96437.25]
[null,2000,5.51,95425.384627104999,0,6.21,98815.357585364007,0,6.91,104618.85]
[null,2300,6.43,100121.90966302638,0,7.25,106489.87969920052,0,8.06,112775.25]
[null,2600,7.34,107313.83145988848,0,8.2799999999999994,114176.17255247539,0,9.2200000000000006,120932.70000000001]
[null,2900,8.26,120756.01589854073,0,9.31,128771.88945609081,0,10.37,137659.20000000001]
[null,3200,9.18,129195.6360758732,0,10.35,137741.19290815128,0,11.52,147157.5]
[null,3500,10.1,137647.02699264404,0,11.39,146710.49636021169,0,12.67,156645.30000000002]
[null,3800,11.02,146086.64716997652,0,12.42,155679.79981227216,0,13.82,166143.6]
[null,4100,11.93,154526.26734730895,0,13.46,164649.1032643326,0,14.98,175642.95]
[null,4400,12.85,162977.65826407983,0,14.49,173618.40671639302,0,16.13,185142.30000000002]
[null,4700,13.77,171417.27844141229,0,15.53,182587.71016845346,0,17.28,188743.80000000002]
[null,5000,14.69,179868.66935818319,0,16.559999999999999,191557.0136205139,0,18.43,197572.2]
[null,5300,15.61,188308.28953551568,0,17.59,200526.31707257437,0,19.579999999999998,206423.7]
[null,5600,16.52,196747.90971284805,0,18.63,209495.62052463472,0,20.74,215251.05000000002]
[2000,2000,6.61,100592.73924056237,0,7.45,106984.25075561329,0,8.2899999999999991,113269.8]
[null,2300,7.71,108349.65653046763,0,8.69,115223.76836249293,0,9.68,121992.15000000001]
[null,2600,8.81,116106.57382037294,0,9.94,123463.28596937262,0,11.06,130714.5]
[null,2900,9.91,132244.25759041865,0,11.18,140789.81442269674,0,12.44,150206.70000000001]
[null,3200,11.02,141448.97583124711,0,12.42,150524.21593825315,0,13.82,160458.9]
[null,3500,12.12,150653.69407207557,0,13.66,160246.84671437118,0,15.21,170722.65]
[null,3800,13.22,159858.41231290397,0,14.9,169981.24822992759,0,16.59,180974.85]
[null,4100,14.32,169074.90129317081,0,16.149999999999999,179715.64974548391,0,17.97,185235.75]
[null,4400,15.42,178279.61953399924,0,17.39,189450.05126104032,0,19.350000000000001,194746.65]
[null,4700,16.52,187484.33777482761,0,18.63,199172.68203715837,0,20.74,204257.55000000002]
[null,5000,17.63,196689.05601565607,0,19.87,202621.50869260944,0,22.12,213791.55000000002]
[null,5300,18.73,205893.77425648455,0,21.11,211661.43658130031,0,23.5,223302.45]
[null,5600,19.829999999999998,208459.79545405554,0,22.36,220689.59373055265,0,24.88,232824.90000000002]
[2300,2300,9,117036.4622360065,0,10.14,124393.17438500618,0,11.29,131643.75]
[null,2600,10.28,125417.22871614693,0,11.59,133244.77044268261,0,12.9,141013.95000000001]
[null,2900,11.57,143732.49928229663,0,13.04,152807.73938930262,0,14.52,162742.65]
[null,3200,12.85,153702.31558662103,0,14.49,163295.46822891661,0,16.13,173759.25]
[null,3500,14.14,163672.1318909454,0,15.94,173794.96780796896,0,17.739999999999998,184788.45]
[null,3800,15.42,173641.94819526986,0,17.39,184282.69664758298,0,19.350000000000001,190074.15]
[null,4100,16.71,183611.76449959422,0,18.84,194782.19622663531,0,20.97,200349.45]
[null,4400,17.989999999999998,193569.8100644802,0,20.29,205269.92506624939,0,22.58,210601.65000000002]
[null,4700,19.28,203539.6263688046,0,21.73,215769.42464530171,0,24.19,220866.45]
[null,5000,20.56,213509.442673129,0,23.18,219488.97830783599,0,25.8,231141.75]
[null,5300,21.85,223479.2589774534,0,24.63,229258.69204170755,0,27.42,241393.95]
[null,5600,23.13,226327.77792154613,0,26.08,239040.17651501758,0,29.03,251670.30000000002]
[2600,2600,11.75,134221.74181606979,0,13.25,142555.42533845667,0,14.75,150771.6]
[null,2900,13.22,155232.511713613,0,14.9,164825.66435590861,0,16.59,175290.15]
[null,3200,14.69,165955.65534199498,0,16.559999999999999,176078.49125901854,0,18.43,187072.2]
[null,3500,16.16,176690.56970981529,0,18.22,187331.31816212845,0,20.28,192627.75]
[null,3800,17.63,187413.71333819727,0,19.87,198584.14506523835,0,22.12,203575.05000000002]
[null,4100,19.09,198148.62770601764,0,21.53,209836.97196834834,0,23.96,214509.75]
[null,4400,20.56,208871.77133439959,0,23.18,214298.08221550175,0,25.8,225444.45]
[null,4700,22.03,213015.07161671628,0,24.84,224750.49883680057,0,27.65,236391.75]
[null,5000,23.5,222973.1171816022,0,26.5,235202.91545809933,0,29.49,247339.05000000002]
[null,5300,24.97,232954.70422536501,0,28.15,245667.10281883649,0,31.33,258285.30000000002]
[null,5600,26.44,242912.74979025102,0,29.81,256119.51944013531,0,33.18,269220]
[2900,2900,{"$f":"(B78/1000-0.2)*2.04*2.7","v":14.871599999999999},166719.57633154705,16.766999999999999,16.766999999999999,176838.88102673908,170745.25,18.662399999999998,187831.35]
[null,3200,{"$f":"(B79/1000-0.2)*2.04*2.7","v":16.524000000000001},178211.34924525651,18.63,18.63,188855.62891940118,182147.17,20.736000000000001,200374.65]
[null,3500,18.176400000000001,189701.94508502207,20.492999999999999,20.492999999999999,200872.37681206327,193549.09000000003,22.809600000000003,212916.90000000002]
[null,3800,19.828800000000001,201192.54092478775,22.355999999999998,22.355999999999998,212774.94853217289,204951.01,24.883199999999999,225460.2]
[null,4100,21.481199999999998,212683.13676455335,24.218999999999998,24.218999999999998,224905.87259738744,216352.93000000002,26.956799999999998,238003.5]
[null,4400,23.133600000000005,224174.90967826289,26.082000000000001,26.082000000000001,236808.44431749702,227754.85,29.030400000000004,250545.75]
[null,4700,24.786000000000001,235665.50551802837,27.945,27.945,248939.36838271163,239156.77000000002,31.103999999999999,263089.05]
[null,5000,26.438400000000001,247156.10135779408,29.808,29.808,260957.29334931748,250558.69,33.177600000000005,275632.35000000003]
[null,5300,28.090800000000002,258646.69719755967,31.670999999999999,31.670999999999999,272974.04124197958,261960.61000000002,35.251199999999997,288174.60000000003]
[null,5600,29.743199999999998,270138.4701112691,33.533999999999999,33.533999999999999,284990.78913464164,273362.53000000003,37.324799999999996,300717.90000000002]
[3200,3200,{"$f":"(B88/1000-0.2)*2.04*3","v":18.36},198703.0295335663,20.7,20.7,201633.94365372774,194241.38,23.04,213679.2]
[null,3500,{"$f":"(B89/1000-0.2)*2.04*3","v":20.195999999999998},202715.67460811671,22.769999999999996,22.769999999999996,214412.2583880543,206336.66,25.344000000000001,226984.80000000002]
[null,3800,22.031999999999996,214969.0143634906,24.839999999999996,24.839999999999996,227191.75019632463,218430.87000000002,27.647999999999996,240289.35]
[null,4100,23.867999999999995,227221.17704492065,26.909999999999997,26.909999999999997,239970.06493065113,230525.08000000002,29.951999999999995,253593.90000000002]
[null,4400,25.704000000000004,239474.51680029451,28.98,28.98,252748.37966497766,242619.29,32.256,266898.45]
[null,4700,27.54,251726.6794817246,31.049999999999997,31.049999999999997,265527.87147324806,254713.50000000003,34.56,280201.95]
[null,5000,29.375999999999998,263980.01923709852,33.119999999999997,33.119999999999997,278306.18620757456,266808.78000000003,36.864000000000004,293508.60000000003]
[null,5300,31.212,276232.18191852851,35.19,35.19,291084.50094190106,278902.99,39.167999999999999,306812.10000000003]
[null,5600,33.047999999999995,288485.52167390246,37.259999999999991,37.259999999999991,303863.99275017146,290997.2,41.471999999999994,320116.65000000002]
[3500,3500,{"$f":"(B97/1000-0.2)*2.04*3.3","v":22.215599999999995},215730.581205155,25.046999999999993,25.046999999999993,227953.31703798907,219123.16,27.878399999999999,241050.6]
[null,3800,{"$f":"(B98/1000-0.2)*2.04*3.3","v":24.235199999999995},228745.48780219333,27.323999999999998,27.323999999999998,241493.19861398,231909.66,30.412799999999997,255116.40000000002]
[null,4100,26.254799999999992,241759.21732528787,29.600999999999996,29.600999999999996,255034.25726391486,244697.23,32.947199999999995,269184.3]
[null,4400,28.274400000000004,254774.12392232617,31.878,31.878,268574.13883990573,257483.73,35.4816,283250.10000000003]
[null,4700,30.293999999999997,267789.03051936458,34.154999999999994,34.154999999999994,282115.19748984062,270271.3,38.015999999999998,297316.95]
[null,5000,32.313600000000001,280802.76004245912,36.431999999999995,36.431999999999995,295655.07906583155,283057.8,40.550399999999996,311382.75]
[null,5300,34.333199999999998,293817.66663949739,38.708999999999996,38.708999999999996,309196.13771576638,295844.3,43.084799999999994,325449.60000000003]
[null,5600,36.352799999999995,306832.57323653583,40.98599999999999,40.98599999999999,322736.01929175737,308631.87,45.619199999999992,339516.45]
[3800,3800,{"$f":"(B105/1000-0.2)*2.04*3.6","v":26.438399999999998},242521.96124089611,29.808,29.808,255795.82410557938,245389.52000000002,33.177599999999998,269945.55]
[null,4100,{"$f":"(B106/1000-0.2)*2.04*3.6","v":28.641599999999997},256297.25760565509,32.291999999999994,32.291999999999994,270098.44959717855,258869.38,35.942399999999992,284774.7]
[null,4400,30.844800000000006,270073.73104435793,34.776000000000003,34.776000000000003,284399.89801483403,272348.17000000004,38.7072,299601.75]
[null,4700,33.048000000000002,283850.20448306075,37.26,37.26,298702.52350643324,285828.03000000003,41.472000000000001,314430.90000000002]
[null,5000,35.251199999999997,297626.67792176356,39.744,39.744,313005.14899803262,299306.82,44.236800000000002,329257.95]
[null,5300,37.4544,311403.15136046638,42.227999999999994,42.227999999999994,327306.59741568798,312786.68,47.001599999999996,344087.10000000003]
[null,5600,39.657599999999995,325178.44772522541,44.711999999999996,44.711999999999996,341609.22290728719,326265.47000000003,49.766399999999997,358914.15]
[4100,4100,{"$f":"(B112/1000-0.2)*2.04*3.9","v":31.028399999999994},270835.29788602242,34.982999999999997,34.982999999999997,285162.6419304423,273040.46000000002,38.937599999999989,300363]
[null,4400,33.415200000000006,285373.33816638961,37.673999999999999,37.673999999999999,300225.65718976222,287212.61000000004,41.9328,315953.40000000002]
[null,4700,35.802,299911.37844675686,40.364999999999995,40.364999999999995,315289.84952302591,301384.76,44.927999999999997,331543.8]
[null,5000,38.188800000000001,314449.41872712417,43.055999999999997,43.055999999999997,330354.04185628961,315555.84000000003,47.923200000000001,347133.15]
[null,5300,40.575600000000001,328987.45900749147,45.746999999999993,45.746999999999993,345418.2341895533,328829.19,50.918399999999998,361734.45]
[null,5600,42.962399999999995,343525.49928785872,48.437999999999988,48.437999999999988,360482.42652281706,343900.14,53.913599999999988,378313.95]
[4400,4400,{"$f":"(B118/1000-0.2)*2.04*4.2","v":35.985600000000005},300672.94528842135,40.572000000000003,40.572000000000003,316052.59343863413,302077.05000000005,45.158400000000007,332306.10000000003]
[null,4700,{"$f":"(B119/1000-0.2)*2.04*4.2","v":38.555999999999997},315973.72948439687,43.47,43.47,331878.35261356231,316941.49,48.384,348657.75]
[null,5000,{"$f":"(B120/1000-0.2)*2.04*4.2","v":41.126400000000004},331273.33660642861,46.367999999999995,46.367999999999995,347704.1117884905,331805.93,51.6096,365009.4]
[null,5300,{"$f":"(B121/1000-0.2)*2.04*4.2","v":43.696800000000003},346572.94372846035,49.265999999999998,49.265999999999998,363529.87096341862,346670.37,54.8352,381361.05]
[null,5600,{"$f":"(B122/1000-0.2)*2.04*4.2","v":46.267199999999995},361872.55085049191,52.163999999999994,52.163999999999994,379355.63013834681,361534.81,58.060799999999993,397713.75]
[4700,4700,{"$f":"(B123/1000-0.2)*2.04*4.5","v":41.31},332034.90344809293,46.574999999999996,46.574999999999996,348465.67863015493,332498.22000000003,51.839999999999996,365770.65]
[null,5000,{"$f":"(B124/1000-0.2)*2.04*4.5","v":44.064},348096.07741178916,49.679999999999993,49.679999999999993,365053.00464674766,348054.95,55.295999999999999,382884.60000000003]
[null,5300,{"$f":"(B125/1000-0.2)*2.04*4.5","v":46.817999999999998},364158.42844942922,52.784999999999997,52.784999999999997,381640.33066334011,363611.68,58.751999999999995,399997.5]
[null,5600,{"$f":"(B126/1000-0.2)*2.04*4.5","v":49.571999999999989},380219.60241312522,55.889999999999993,55.889999999999993,398227.6566799329,379168.41000000003,62.207999999999991,417111.45]
[5000,5000,{"$f":"(B127/1000-0.2)*2.04*4.8","v":47.001599999999996},364919.99529109371,52.991999999999997,52.991999999999997,382401.89750500454,364271.87,58.982399999999998,400724.10000000003]
[null,5300,{"$f":"(B128/1000-0.2)*2.04*4.8","v":49.9392},381742.73609645432,56.303999999999995,56.303999999999995,399751.96743720549,380552.99000000005,62.66879999999999,418635]
[null,5600,{"$f":"(B129/1000-0.2)*2.04*4.8","v":52.876799999999989},398566.65397575864,59.615999999999985,59.615999999999985,417100.8602954626,396803.08,66.355199999999982,436511.25]
[5300,5300,{"$f":"(B130/1000-0.2)*2.04*5.1","v":53.060399999999994},399328.22081742313,59.822999999999986,59.822999999999986,417862.42713712697,397495.37,66.585599999999985,437272.5]
[null,5600,{"$f":"(B131/1000-0.2)*2.04*5.1","v":56.181599999999989},416913.70553839201,63.341999999999985,63.341999999999985,435974.06391099241,414436.68000000005,70.50239999999998,455908.95]
[5600,5600,{"$f":"(B132/1000-0.2)*2.04*5.4","v":59.486399999999996},435260.75710102532,67.069999999999993,67.069999999999993,454847.26752652216,431556.68000000005,74.650000000000006,474741.75]
[]
["Цены на оборудование ТМ «POLAIR», указанные в настоящем прайс-листе являются рекомендованными и могут отличаться от розничных цен у наших дилеров и региональных представителей."]

{"sheet":"Наборы панелей","index":20,"n_rows":44,"n_cols":5,"rows_kept":44,"cut":false,"hidden":false,"merged":[[34,0,34,3],[35,0,35,4],[36,0,36,3],[43,0,43,3],[3,3,3,4],[5,0,5,3],[9,0,9,4],[10,0,11,0],[10,1,11,1],[10,2,10,3],[10,4,11,4]]}
[]
[]
[]
[null,null,null,"2020-03-30"]
[]
["ПРАЙС-ЛИСТ -  РАСШИРИТЕЛЬНЫЕ ПОЯСА (ППУ 80 мм) В УПАКОВКЕ"]
[]
["Расширительные пояса (толщина панелей 80 мм) в упаковке"]
["Расширительный пояс состоит из 4-х панелей одинаковой ширины: потолочная, половая и 2 стеновых панели ."]
["Базовые цены с учётом НДС"]
["   Ширина камеры, мм","     Ширина пояса, мм","                                        Набор панелей",null,"Цена расширительного пояса, Руб."]
[null,null,"потолочная и половая панели - по 1 шт.","боковая панель - 2 шт."]
[null,1200,"1360х1200мм ","   2040х1200мм ",31806.061042652545]
[null,900,"1360х900мм .","2040х900мм ",23839.407902469276]
[1360,600,"1360х600мм","2040х600мм",15623.667835636654]
[null,300,"1360х300мм","2040х300мм",7936.3773811430083]
[null,1200,"1660х1200мм","2040х1200",34707.029227055093]
[null,900,"1660х900мм","2040х900мм ",26048.162141542372]
[1660,600,"1660х600мм","2040х600мм",17360.395467854873]
[null,300,"1660х300мм","2040х300мм",8687.7666736875017]
[null,1200,"1960х1200мм","2040х1200",37636.89699963243]
[null,900,"1960х900мм","2040х900мм ",28228.016792440689]
[1960,600,"1960х600мм","2040х600мм",18819.136585248947]
[null,300,"1960х300мм","2040х300мм",9408.8802071917362]
[null,1200,"2260х1200мм","2040х1200",40568.140943075217]
[null,900,"2260х900мм","2040х900мм ",30023.919771873945]
[2260,600,"2260х600мм","2040х600мм",20291.63941129767]
[null,300,"2260х300мм","2040х300мм",10145.131620216103]
[null,1200,"2560х1200мм","2040х1200",43482.870836132402]
[null,900,"2560х900мм","2040х900мм ",32616.625682412079]
[2560,600,"2560х600мм","2040х600мм",21749.004357826274]
[null,300,"2560х300мм","2040х300мм",10867.621324585807]
[]
[]
["ПРАЙС-ЛИСТ - СТОЙКИ "]
["Базовые цены с учётом НДС"]
["СТОЙКИ"]
["для панелей толщиной 80 мм","Цена, Руб.","для панелей толщиной 100 мм","Цена, Руб."]
["1200х 80 x 80 мм ",604.37288135593224,"1200х 100 x 100 мм ",875.7]
["2040х 80 x 80 мм ",1022.9491525423729,"2040 х 100 x 100 мм ",1451.1355932203392]
["2300 х 80 x 80 мм ",1130.7966101694917,"2300 х 100 x 100 мм ",1655.0847457627119]
["2560 х 80 x 80 мм ",1269.6101694915255,"2560 х 100 x 100 мм ",1828.0677966101696]
[]
["Производитель оставляет за собой право частичного изменения технических характеристик оборудования без принципиальных изменений его эксплуатационных свойств"]

{"sheet":"Дверные бл. универ-е и конт","index":21,"n_rows":67,"n_cols":5,"rows_kept":67,"cut":false,"hidden":false,"merged":[[40,1,43,1],[1,3,1,4],[4,1,4,4],[6,1,7,4],[8,1,8,4],[17,1,18,4],[19,1,19,3],[20,1,21,3],[20,4,21,4],[24,1,27,1],[29,1,32,1],[34,1,37,1],[69,2,70,2],[69,3,69,4],[71,2,72,2],[73,2,74,2],[45,1,48,1],[50,1,53,1],[56,1,56,4],[59,1,60,2],[59,3,59,4],[66,1,66,4]]}
[]
[null,null,null,"2020-03-30"]
[]
[]
[null,"ПРАЙС - ЛИСТ  -  ДВЕРНЫЕ  БЛОКИ,  ДВЕРИ "]
[]
[null,"Серийно выпускаются 3 основных типа дверей \"Полаир\" с толщиной полотна двери 80 мм: для светового проема 1850*800 -распашные, для светового проема 1200*1850 - контейнерные и откатные. Двери устанавливаются на камеры с толщиной панелей как 80мм так и 100 м"]
[]
[null,"Базовые цены с учетом НДС"]
[null,"ДВЕРНЫЕ БЛОКИ УНИВЕРСАЛЬНЫЕ (распашная) световой проем 1850 x 800"]
[null,"Комплектация: комплект ручки и петель, пороговая накладка, метизы"]
[null,"80 мм","Цена, Руб.","100 мм","Цена, Руб."]
[null,"1200х2040 мм ",31914.305084745763,"1200х2040 мм",32918.03389830509]
[null,"1200х2300 мм ",33418.830508474581,"1200х2300 мм ",34909.47457627119]
[null,"1200х2560 мм",35410.271186440681,"1200х2560 мм ",38419.322033898308]
[]
[null,"ДВЕРНЫЕ БЛОКИ КОНТЕЙНЕРНЫЕ (световой проем 1200 x1850) "]
[null,"В состав дв.блока входят 2 боковые панели дв. проема с закладными элементами, панель-арка, дверь и комлектующие для монтажа "]
[]
[null,"ДВЕРЬ КОНТЕЙНЕРНАЯ (без панелей, с комплектацией)",null,null,42444]
[null,"Комплектация: комплект ручки и петель, комплект деталей для монтажа двери (2 стойки+перекладина+ пальцы латунные), "]
[]
[]
[null,null,null,null,"Цена, Руб."]
[null,"Высота камеры = 2 200 мм (толщ панелей 80 мм)","1800 x2040 (бок.пан.дв.пр. 2040*300-2шт; пан.-арка 1200*190)",null,48056.245623171621]
[null,null,"2400 x2040 (бок. пан.дв.пр. 2040*600-2шт; пан.-арка 1200*190)",null,52234.120870179038]
[null,null,"3000 x2040 (бок. пан.дв.пр. 2040*900-2шт; пан.-арка 1200*190)",null,56411.996117186456]
[null,null,"3600 x2040 (бок.пан.дв.пр. 2040*1200-2шт; пан.-арка 1200*190)",null,60589.871364193867]
[]
[null,"Высота камеры = 2 460 мм (толщ.панелей 80 мм)","1800 x2300 (бок. пан.дв.пр. 2300*300-2шт; пан.-арка 1200*450)",null,49711.061172136666]
[null,null,"2400 x2300 (бок. пан.дв.пр. 2300*600-2шт; пан.-арка 1200*450)",null,54421.694044627126]
[null,null,"3000 x2300 (бок. пан.дв.пр. 2300*900-2шт; пан.-арка 1200*450)",null,59132.326917117593]
[null,null,"3600 x2300 (бок. пан.дв.пр. 2300*1200-2шт; пан.-арка 1200*450)",null,63842.95978960806]
[]
[null,"Высота камеры= 2 720 мм (толщ.панелей 80 мм)","1800 x2560 (бок. пан.дв.пр. 2560*300-2шт; пан.-арка 1200*710)",null,51605.868953335805]
[null,null,"2400 x2560 (бок. пан.дв.пр. 2560*600-2шт; пан.-арка 1200*710)",null,56849.259451309328]
[null,null,"3000 x2560 (бок. пан.дв.пр. 2560*900-2шт; пан.-арка 1200*710)",null,62092.649949282852]
[null,null,"3600 x2560 (бок. пан.дв.пр. 2560*1200-2шт; пан.-арка 1200*710)",null,67336.040447256382]
[]
[]
[null,"Высота камеры = 2 240 мм (толщ панелей 100 мм)","1800 x2040 (бок.пан.дв.пр. 2040*300-2шт; пан.-арка 1200*190)",null,48421.88823877438]
[null,null,"2400 x2040 (бок. пан.дв.пр. 2040*600-2шт; пан.-арка 1200*190)",null,53074.721934915258]
[null,null,"3000 x2040 (бок. пан.дв.пр. 2040*900-2шт; пан.-арка 1200*190)",null,57727.555631056159]
[null,null,"3600 x2040 (бок.пан.дв.пр. 2040*1200-2шт; пан.-арка 1200*190)",null,62380.389327197045]
[]
[null,"Высота камеры = 2 500 мм (толщ.панелей 100 мм)","1800 x2300 (бок. пан.дв.пр. 2300*300-2шт; пан.-арка 1200*450)",null,50539.097198536016]
[null,null,"2400 x2300 (бок. пан.дв.пр. 2300*600-2шт; пан.-арка 1200*450)",null,55785.000704176906]
[null,null,"3000 x2300 (бок. пан.дв.пр. 2300*900-2шт; пан.-арка 1200*450)",null,61030.904209817796]
[null,null,"3600 x2300 (бок. пан.дв.пр. 2300*1200-2шт; пан.-арка 1200*450)",null,66276.807715458708]
[]
[null,"Высота камеры= 2 760 мм (толщ.панелей 100 мм)","1800 x2560 (бок. пан.дв.пр. 2560*300-2шт; пан.-арка 1200*710)",null,52655.049654464005]
[null,null,"2400 x2560 (бок. пан.дв.пр. 2560*600-2шт; пан.-арка 1200*710)",null,58494.022969604877]
[null,null,"3000 x2560 (бок. пан.дв.пр. 2560*900-2шт; пан.-арка 1200*710)",null,64332.996284745765]
[null,null,"3600 x2560 (бок. пан.дв.пр. 2560*1200-2шт; пан.-арка 1200*710)",null,70171.969599886681]
[]
[]
[null,"Дополнительное оборудование:"]
[null,"Комплект для низкотемпературных камер: компенсационный клапан, ПЭН обогрева двери"]
[]
[null,"                           Тип двери",null,"                       Толщина панели"]
[null,null,null,"80 мм","              100 мм"]
[null,null,null,"Цена, Руб.","Цена, Руб."]
[null,"Распашная",null,917,961]
[null,"Откатная или контейнерная",null,966,1028]
[]
[]
[null,"Производитель оставляет за собой право частичного изменения технических характеристик оборудования без принципиальных изменений его эксплуатационных свойств"]

{"sheet":"Дверные бл. с откат.дверью","index":22,"n_rows":59,"n_cols":11,"rows_kept":59,"cut":false,"hidden":false,"merged":[[22,1,25,1],[1,3,1,5],[4,1,4,4],[6,1,7,4],[8,1,8,4],[17,1,20,1],[52,1,53,2],[52,3,52,4],[54,7,54,8],[58,1,58,4],[27,1,30,1],[33,1,36,1],[38,1,41,1],[43,1,46,1],[48,1,48,6],[49,1,49,4]]}
[]
[null,null,null,"2020-03-30"]
[]
[]
[null,"ПРАЙС - ЛИСТ  -  ДВЕРНЫЕ  БЛОКИ,  ДВЕРИ "]
[]
[null,"Серийно выпускаются 3 основных типа дверей \"Полаир\" с толщиной полотна двери 80 мм: для светового проема 1850*800 -распашные, для светового проема 1200*1850 - контейнерные и откатные. Двери устанавливаются на камеры с толщиной панелей как 80мм так и 100 м"]
[]
[null,"Базовые цены с учетом НДС"]
[null,"ДВЕРНЫЕ БЛОКИ С ОТКАТНОЙ ДВЕРЬЮ"]
[]
[null,null,null,null,"Цена, Руб."]
[null,"ДВЕРЬ ОТКАТНАЯ (без панелей, с комплектацией)",null,null,67033,null,null,{"$f":"I13*1.15","v":50809.99},44182.6]
[null,"Комплектация: 1 упаковка - комплект деталей для сборки  откатной двери, комплект ручка и замок, метизы"]
[null,"2 упаковка - козырек, кронштейны, профиль алюминевый L = 2 710 мм, уплотнение двери"]
[null,null,"                                                                              Дверные блоки с откатной дверью для различной высоты камер(дверь,пан.дв.проема,пан.-арка,комплектация)"]
[null,null,null,null,"Цена, Руб."]
[null,"Высота камеры = 2 200 мм (толщ панелей 80 мм)","1800 x2040 (бок.пан.дв.пр. 2040*300-2шт; пан.-арка 1200*190)",null,72647.282152248954,null,null,{"$f":"I18*1.15","v":54711.249999999993},47575]
[null,null,"2400 x2040 (бок. пан.дв.пр. 2040*600-2шт; пан.-арка 1200*190)",null,76825.157399256364,null,null,{"$f":"I19*1.15","v":57640.989999999991},50122.6]
[null,null,"3000 x2040 (бок. пан.дв.пр. 2040*900-2шт; пан.-арка 1200*190)",null,81003.03264626379,null,null,60568.2,52668]
[null,null,"3600 x2040 (бок.пан.дв.пр. 2040*1200-2шт; пан.-арка 1200*190)",null,87693.915560644076,null,null,63667.45,55363]
[]
[null,"Высота камеры = 2 460 мм (толщ.панелей 80 мм)","1800 x2300 (бок. пан.дв.пр. 2300*300-2шт; пан.-арка 1200*450)",null,74302.097701214007,null,null,55832.039999999994,48549.599999999999]
[null,null,"2400 x2300 (бок. пан.дв.пр. 2300*600-2шт; пан.-арка 1200*450)",null,79012.730573704466,null,null,59132.424999999996,51419.5]
[null,null,"3000 x2300 (бок. пан.дв.пр. 2300*900-2шт; пан.-арка 1200*450)",null,83723.36344619494,null,null,62604.85,54439]
[null,null,"3600 x2300 (бок. пан.дв.пр. 2300*1200-2шт; пан.-арка 1200*450)",null,88354.836577163165,null,null,65906.5,57310]
[]
[null,"Высота камеры= 2 720 мм (толщ.панелей 80 мм)","1800 x2560 (бок. пан.дв.пр. 2560*300-2шт; пан.-арка 1200*710)",null,76196.905482413145,null,null,56950.299999999996,49522]
[null,null,"2400 x2560 (бок. пан.дв.пр. 2560*600-2шт; пан.-арка 1200*710)",null,81440.295980386669,null,null,60795.899999999994,52866]
[null,null,"3000 x2560 (бок. пан.дв.пр. 2560*900-2шт; пан.-арка 1200*710)",null,86683.686478360207,null,null,64471.989999999991,56062.6]
[null,null,"3600 x2560 (бок. пан.дв.пр. 2560*1200-2шт; пан.-арка 1200*710)",null,91927.076976333687,null,null,68145.549999999988,59257]
[]
[null,null,null,null,0,null,null,0]
[null,"Высота камеры = 2 240 мм (толщ панелей 100 мм)","1800 x2040 (бок.пан.дв.пр. 2040*300-2шт; пан.-арка 1200*190)",null,73012.924767851713,null,null,58869.304999999993,51190.7]
[null,null,"2400 x2040 (бок. пан.дв.пр. 2040*600-2шт; пан.-арка 1200*190)",null,77665.758463992577,null,null,58308.909999999996,50703.4]
[null,null,"3000 x2040 (бок. пан.дв.пр. 2040*900-2шт; пан.-арка 1200*190)",null,82318.592160133485,null,null,61542.249999999993,53515]
[null,null,"3600 x2040 (бок.пан.дв.пр. 2040*1200-2шт; пан.-арка 1200*190)",null,86971.425856274363,null,null,64947.62999999999,56476.2]
[]
[null,"Высота камеры = 2 500 мм (толщ.панелей 100 мм)","1800 x2300 (бок. пан.дв.пр. 2300*300-2шт; пан.-арка 1200*450)",null,75130.133727613327,null,null,56311.474999999999,48966.5]
[null,null,"2400 x2300 (бок. пан.дв.пр. 2300*600-2шт; пан.-арка 1200*450)",null,80376.037233254261,null,null,59957.204999999994,52136.7]
[null,null,"3000 x2300 (бок. пан.дв.пр. 2300*900-2шт; пан.-арка 1200*450)",null,85621.940738895151,null,null,63774.974999999999,55456.5]
[null,null,"3600 x2300 (бок. пан.дв.пр. 2300*1200-2шт; пан.-арка 1200*450)",null,90867.844244536042,null,null,67421.97,58627.8]
[]
[null,"Высота камеры= 2 760 мм (толщ.панелей 100 мм)","1800 x2560 (бок. пан.дв.пр. 2560*300-2шт; пан.-арка 1200*710)",null,77246.086183541323,null,null,57544.85,50039]
[null,null,"2400 x2560 (бок. пан.дв.пр. 2560*600-2шт; пан.-арка 1200*710)",null,83085.059498682211,null,null,61777.539999999994,53719.6]
[null,null,"3000 x2560 (бок. пан.дв.пр. 2560*900-2шт; пан.-арка 1200*710)",null,88924.032813823113,null,null,65119.67,56625.8]
[null,null,"3600 x2560 (бок. пан.дв.пр. 2560*1200-2шт; пан.-арка 1200*710)",null,94763.006128964029,null,null,69893.779999999984,60777.2]
[]
[null,"Базовые цены с учётом НДС"]
[null,"Дополнительное оборудование:"]
[null,"Комплект для низкотемпературных камер: компенсационный клапан, ПЭН обогрева двери"]
[]
[null,"                           Тип двери",null,"                       Толщина панели"]
[null,null,null,"80 мм","              100 мм"]
[null,null,null,"Цена, Руб.","Цена, Руб.",null,null,"Цена, Руб."]
[null,"Распашная",null,917,961,null,null,{"$f":"J56*1.15","v":713},{"$f":"K56*1.15","v":724.5},620,630]
[null,"Откатная или контейнерная",null,966,1028,null,null,{"$f":"J57*1.15","v":758.99999999999989},{"$f":"K57*1.15","v":770.49999999999989},660,670]
[]
[null,"Производитель оставляет за собой право частичного изменения технических характеристик оборудования без принципиальных изменений его эксплуатационных свойств"]